{"text_format":"1","workbook":"xlsx","n_sheets":11,"sheets":["Info","SI","SL","GW","SW","SD","IA","AF","SHARP1","SHARP2","ChemTox"],"not_rendered":{"charts":0,"images":1,"macros":1,"external_links":1,"defined_names":321,"comments":0,"pivot_tables":0},"unopened":[],"bounds":{"document_bytes":16777216,"sheet_cells":100000,"rows_first":2000,"rows_last":500,"rows_between":2000,"halvings":0,"cell_chars":16384,"cell_head_chars":4096},"cells_cut":0,"cells_raw":0,"read":"whole","date_system":"1900"}

{"sheet":"Info","index":0,"n_rows":99,"n_cols":14,"rows_kept":99,"cut":false,"hidden":false,"merged":[[17,5,17,6],[18,5,18,6],[19,5,19,9],[99,2,145,9],[8,8,8,9],[14,5,14,9],[15,5,15,9],[48,2,93,9],[16,5,16,7],[9,8,9,9]]}
[]
[]
[null,null,"Site Information"]
[]
[null,null,"Fill in yellow fields ONLY",null,null,null,null,null,null,null,null,null,"▼ hidden columns ▼"]
[]
[null,null,"▼ Check one",null,null,"▼ Enter ranker name & rank completion date",null,null,null,null,null,null,"dropdown menu resources only"]
[null,null,null,null,null,null,null,null,null,null,null,null,"Counties list","Responsible Unit"]
[null,null,null,"\"x\" if initial ranking",null,null,null,"Ranked on",null,null,null,null,"[select one]","Central"]
[null,null,null,"\"x\" if re-ranking",null,null,null,"Ranking by",null,null,null,null,"Adams","Eastern"]
[null,null,null,null,null,null,null,null,null,null,null,null,"Asotin","Hazardous Waste"]
[null,null,"▼ Enter  site information",null,null,null,null,null,null,null,null,null,"Benton","Headquarters"]
[]
[]
[null,null,null,"site name",null,null,null,null,null,null,null,null,"Chelan","Northwest"]
[null,null,null,"street address",null,null,null,null,null,null,null,null,"Clallam","Pollution Liability Ins Agency"]
[null,null,null,"city",null,null,null,null,"zip",null,null,null,"Clark","Solid Waste Program"]
[null,null,null,"county","[select one]","[select one]",null,null,null,null,null,null,"Columbia","Southwest"]
[null,null,null,"land use","[select one]","[select one - delete to start over]",null,null,null,null,null,null,"Cowlitz"]
[null,null,null,"parcel(s)","[list all, separated by \" ; \"]",null,null,null,null,null,null,null,"Douglas"]
[null,null,null,null,null,null,null,null,null,null,null,null,"Ferry"]
[null,null,"▼ Enter  Ecology identifiers (list all that apply, including updates)",null,null,null,null,null,null,null,null,null,"Franklin"]
[null,null,null,"responsible unit","[select ISIS unit]",null,null,null,null,null,null,null,"Garfield"]
[null,null,null,"CSIDs",null,null,null,null,null,null,null,null,"Grant"]
[null,null,null,"FSIDs",null,null,null,null,null,null,null,null,"Grays Harbor"]
[null,null,null,"VCP project nos.",null,null,null,null,null,null,null,null,"Island"]
[null,null,null,"LUST IDs",null,null,null,null,null,null,null,null,"Jefferson"]
[null,null,null,"UST IDs",null,null,null,null,null,null,null,null,"King"]
[null,null,null,null,null,null,null,null,null,null,null,null,"Kitsap"]
[null,null,"▼ Enter  Reviewed information and data sources (list newest to oldest)",null,null,null,null,null,null,null,null,null,"Kittitas"]
[null,null,null,"List newest to oldest, format as yyyy, author/organization, title",null,null,null,null,null,null,null,null,"Klickitat"]
[null,null,null,null,null,null,null,null,null,null,null,null,"Lewis"]
[null,null,null,null,null,null,null,null,null,null,null,null,"Lincoln"]
[null,null,null,null,null,null,null,null,null,null,null,null,"Mason"]
[null,null,null,null,null,null,null,null,null,null,null,null,"Okanogan"]
[null,null,null,null,null,null,null,null,null,null,null,null,"Pacific"]
[null,null,null,null,null,null,null,null,null,null,null,null,"Pend Oreille"]
[null,null,null,null,null,null,null,null,null,null,null,null,"Pierce"]
[null,null,null,null,null,null,null,null,null,null,null,null,"San Juan"]
[null,null,null,null,null,null,null,null,null,null,null,null,"Skagit"]
[null,null,null,null,null,null,null,null,null,null,null,null,"Skamania"]
[null,null,null,null,null,null,null,null,null,null,null,null,"Stevens"]
[null,null,null,null,null,null,null,null,null,null,null,null,"Thurston"]
[null,null,null,null,null,null,null,null,null,null,null,null,"Wahkiakum"]
[]
[null,null,"Site Information (printed page 2)",null,null,null,null,null,null,null,null,null,"Walla Walla"]
[null,null,null,null,null,null,null,null,null,null,null,null,"Whatcom"]
[null,null,"▼ Enter   Site narrative",null,null,null,null,null,null,null,null,null,"Whitman"]
[null,null,null,null,null,null,null,null,null,null,null,null,"Yakima"]
[]
[]
[]
[]
[]
[]
[]
[]
[]
[]
[]
[]
[]
[]
[]
[]
[]
[]
[]
[]
[]
[]
[]
[]
[]
[]
[]
[]
[]
[]
[]
[]
[]
[]
[]
[]
[]
[]
[]
[]
[]
[]
[]
[]
[]
[]
[]
[null,null,"Site Information (printed page 3)"]
[]
[null,null,"▼ Continue   Site narrative (overflfow from page 2, as needed)"]

{"sheet":"SI","index":1,"n_rows":12,"n_cols":4,"rows_kept":12,"cut":false,"hidden":false,"merged":[[13,2,13,3],[14,2,14,3],[2,2,2,3]]}
[null,null,{"$f":"_xlfn.CONCAT(\"Socioeconomic Indicators\",C12)","v":"Socioeconomic Indicators"}]
[null,null,"► Launch EJScreen"]
[null,null,"Follow the SHARP Tool Manual instructions to collect index percentile data."]
[]
[null,null,"EJScreen socioeconomic indicators","Enter\n▼ index percentiles ▼"]
[null,null,"People of Color"]
[null,null,"Low Income"]
[null,null,"Less Than High School"]
[null,null,"Limited English Speaking"]
[null,null,"Under Age 5"]
[null,null,"Over Age 64"]
[null,null,{"$f":"IF(OR(SI_P80=\"\",SI2_P80=\"\",SI3_P80=\"\",SI4_P80=\"\",SI5_P80=\"\",SI6_P80=\"\"),\"\",\nIF(OR(SI_P80>80,SI2_P80>80,SI3_P80>80,SI4_P80>80,SI5_P80>80,SI6_P80>80),\" - yes\",\" - no\"))","v":""}]

{"sheet":"SL","index":2,"n_rows":92,"n_cols":7,"rows_kept":92,"cut":false,"hidden":false,"merged":[[38,5,38,6],[39,5,39,6],[35,5,35,6],[77,1,85,6],[3,5,3,6],[9,5,9,6],[13,5,13,6],[14,5,14,6],[15,5,15,6],[16,5,16,6],[27,5,27,6],[34,5,34,6],[64,5,64,6],[56,5,56,6],[55,5,55,6],[51,5,51,6],[50,5,50,6],[46,5,46,6],[42,5,42,6]]}
[null,{"$f":"CONCATENATE(\"Soil = \",SL_ExScore,SL_SvScore)","v":"Soil = ExGo SvGo"}]
[]
[1,"Answer exposure questions",null,"Q-score","answer",null,"Hints"]
[null,"SL_Ex1","Is there a release to site soil that needs additional cleanup action?",{"$f":"IF(SL_Ex1_Ans=\"[menu]\",\"\",\n\nIF(OR(SL_Ex1_Ans=\"yes\",SL_Ex1_Ans=\"maybe\"),\"continue\",\nIF(SL_Ex1_Ans=\"no\",\"D\",\"\")))","v":""},"[menu]","The MTCA standard point of compliance for soil is from ground surface to 15 feet deep for people exposed to contamination."]
[null,null,null,null,null,"yes","Answer \"yes\", if contamination is confirmed by analytical data, site observation, or both."]
[null,null,null,null,null,"maybe","Answer \"maybe\", without analytical data, if surface soil appears discolored, stained, or oily, or emits an unnatural odor."]
[null,null,null,null,null,"no","Answer \"no\", if either of the following is true."]
[null,null,null,null,null,"•","Analytical data indicate no evidence of contamination in soil samples collected in and around the contaminated area."]
[null,null,null,null,null,"•","No release has been otherwise documented."]
[null,"SL_Ex2","Is soil contaminated anywhere from ground surface to approximately 2 feet deep?",{"$f":"IF(SL_Ex1_Score=\"D\",\"SKIP\",\nIF(SL_Ex2_Ans=\"[menu]\",\"\",\n\nIF(OR(SL_Ex2_Ans=\"yes\",SL_Ex2_Ans=\"maybe\"),\"A\",\nIF(SL_Ex2_Ans=\"no\",\"D\",\"\"))))","v":""},"[menu]","Most direct-contact exposures in soil are likely to occur at ground surface to relatively shallow depths (e.g., playing, gardening, installing fence posts, landscaping)."]
[null,null,null,null,null,"yes","Answer \"yes\", if contamination is confirmed by analytical data, site observation, or both."]
[null,null,null,null,null,"maybe","Answer \"maybe\", without analytical data, if surface soil appears discolored, stained, or oily, or emits an unnatural odor."]
[null,null,null,null,null,"no","Answer \"no\", if analytical data indicate no evidence of contamination in soil samples collected in and around the contaminated area, or if no surface release has been documented."]
[null,"SL_Ex3","Do plants or animals have access to soil contamination anywhere from 0 to 6 feet deep?",{"$f":"IF(SL_Ex1_Score=\"D\",\"SKIP\",\nIF(SL_Ex3_Ans=\"[menu]\",\"\",\n\nIF(OR(SL_Ex3_Ans=\"yes\",SL_Ex3_Ans=\"maybe\"),\"C\",\nIF(SL_Ex3_Ans=\"no\",\"D\",\"\"))))","v":""},"[menu]","The conditional soil point of compliance for plants and animals is from 0 to 6 feet deep.  Plants and animals are not at risk of current exposure, if contaminated soil is covered by buildings or pavement.  Some chemicals may have a smaller applicable screening area.  See the following resources for more information."]
[null,null,null,null,null,"► WAC 173-340-7491(1)   Criteria for determining that no further evaluation is required"]
[null,null,null,null,null,"► WAC 173-340-7491(2)  Procedure for a site that does not qualify for an exclusion"]
[null,null,null,null,null,"► Draft Technical Document: Terrestrial Ecological Evaluations under the Model Toxics Control Act"]
[null,null,null,null,null,"yes","Answer \"yes\", if either of the following is true:"]
[null,null,null,null,null,"•","A terrestrial ecological evaluation (TEE) did not result in a TEE exemption or a simplified TEE that ended.  "]
[null,null,null,null,null,"•","A TEE has not been conducted, and the site does not meet the exclusion criteria listed below."]
[null,null,null,null,null,"maybe","Answer \"maybe\", if the conditions supporting a \"yes\" answer are suspected but not confirmed, or if a barrier is in place that currently prevents plants and animals from accessing the soil in a way that may not be a permanent condition."]
[null,null,null,null,null,"no","Answer \"no\", if any of the following is true."]
[null,null,null,null,null,"•","All contaminated soil is under pavement, buildings, or other physical barrier."]
[null,null,null,null,null,"•","Contamination is not observed or confirmed from 0 and 6 feet deep."]
[null,null,null,null,null,"•","Contaminant levels are not greater than soil background levels."]
[null,null,null,null,null,"•","The site meets any of the criteria for a TEE exemption."]
[null,null,null,null,null,"•","A simplified TEE was performed and the result was that the TEE was ended (protecting plants and animals doesn't need to be considered in developing site cleanup levels)."]
[null,"SL_Ex4","Do any physical barriers block direct contact with soil contamination?",{"$f":"IF(SL_Ex1_Score=\"D\",\"SKIP\",\nIF(SL_Ex4_Ans=\"[menu]\",\"\",\n\nIF(OR(SL_Ex4_Ans=\"yes\",SL_Ex4_Ans=\"maybe\"),\"C\",\nIF(SL_Ex4_Ans=\"no\",\"A\",\"\"))))","v":""},"[menu]","Physical contact with soil contamination can be blocked by barriers and impermeable covers such as pavement, concrete, buildings, soil caps, geotextile fabrics, and mitigation barriers."]
[null,null,null,null,null,"yes","Answer \"yes\", if security fencing or other physical barrier is in place to prevent all direct contact with contaminated soil."]
[null,null,null,null,null,"maybe","Answer \"maybe\", if security fencing or other physical barrier prevents some but not all direct contact with soil contamination."]
[null,null,null,null,null,"no","Answer \"no\", if no security fencing or physical barrier is in place."]
["",null,null,"Exposure score ►",{"$f":"IF(SL_Ex1_Score=\"D\",\"D\",\nIF(OR(SL_Ex1_Score=\"\",SL_Ex2_Score=\"\",SL_Ex3_Score=\"\",SL_Ex4_Score=\"\"),\"ExGo \",\n\nIF(AND(SL_Ex2_Score=\"A\",SL_Ex4_Score=\"A\"),\"A\",\nIF(AND(SL_Ex2_Score=\"A\",SL_Ex4_Score=\"C\"),\"C\",\n\nIF(AND(SL_Ex2_Score=\"D\",SL_Ex3_Score=\"C\",SL_Ex4_Score=\"C\"),\"B\",\nIF(AND(SL_Ex2_Score=\"D\",SL_Ex3_Score=\"C\",SL_Ex4_Score=\"A\"),\"C\",\nIF(AND(SL_Ex2_Score=\"D\",SL_Ex3_Score=\"D\",SL_Ex4_Score=\"A\"),\"C\",\nIF(AND(SL_Ex2_Score=\"D\",SL_Ex3_Score=\"D\",SL_Ex4_Score=\"C\"),\"C\",\"\"))))))))","v":"ExGo "}]
[]
[2,"Answer severity questions",null,"Q-score","answer",null,"Hints"]
[null,"SL_Sv1","Is any extremely toxic chemical in soil?",{"$f":"IF(SL_ExScore=\"D\",\"SKIP\",\nIF(SL_Sv1_Ans=\"[menu]\",\"\",\n\nIF(SL_Sv1_Ans=\"yes\",10,\nIF(SL_Sv1_Ans=\"maybe\",6,\nIF(SL_Sv1_Ans=\"no\",0,\"\")))))","v":""},"[menu]","Compare site confirmed or suspected chemicals with those listed as extremely toxic in the \"SHARP User Toxicity Scoring Reference\", under the heading, \"Soil, Groundwater, Air, SHARP Toxicity Category\"."]
[null,null,null,null,null,"► Go to ChemTox Tab"]
[null,null,null,null,null,"yes or\n maybe","Answer \"yes\" or \"maybe\", if any site chemical is listed as extremely toxic."]
[null,null,null,null,null,"no","Answer \"no\", if no site chemical is listed as extremely toxic."]
[null,"SL_Sv2","Is any very toxic chemical in soil?",{"$f":"IF(SL_ExScore=\"D\",\"SKIP\",\nIF(OR(SL_Sv1_Score=10,SL_Sv1_Score=6,SL_Sv1_Score=2),\"SKIP\",\nIF(SL_Sv2_Ans=\"[menu]\",\"\",\n\nIF(SL_Sv2_Ans=\"yes\",5,\nIF(SL_Sv2_Ans=\"maybe\",3,\nIF(SL_Sv2_Ans=\"no\",0,\"\"))))))","v":""},"[menu]","Compare site confirmed or suspected chemicals with those listed as very toxic in the \"SHARP User Toxicity Scoring Reference\", under the heading, \"Soil, Groundwater, Air, SHARP Toxicity Category\"."]
[null,null,null,null,null,"► Go to ChemTox Tab"]
[null,null,null,null,null,"yes or\n maybe","Answer \"yes\" or \"maybe\", if any site chemical is listed as very toxic."]
[null,null,null,null,null,"no","Answer \"no\", if no site chemical is listed as very toxic."]
[null,"SL_Sv3","Are there children within 500 lateral feet of the site who have unrestricted access to the site?",{"$f":"IF(SL_ExScore=\"D\",\"SKIP\",\nIF(SL_Sv3_Ans=\"[menu]\",\"\",\n\nIF(SL_Sv3_Ans=\"yes\",10,\nIF(SL_Sv3_Ans=\"maybe\",6,\nIF(SL_Sv3_Ans=\"no\",0,\"\")))))","v":""},"[menu]","Small children are at the greatest risk of accidental ingestion of soil through playing and digging in shallow soil.  Consider if children may live or play within 500 feet of site contaminated soil."]
[null,null,null,null,null,"yes","Answer \"yes\", if no physical barrier blocks sensitive people from entering anywhere on the site, and unrestricted access is available or likely."]
[null,null,null,null,null,"maybe","Answer \"maybe\", if no physical barrier exists but \"keep out\" or \"no trespassing\" types of signs are posted to hinder site access."]
[null,null,null,null,null,"no","Answer \"no\", if security fencing or other physical barrier blocks site entry or access to the contamination."]
[null,"SL_Sv4","Are people likely to be exposed to contaminated soil as airborne dust?",{"$f":"IF(SL_ExScore=\"D\",\"SKIP\",\nIF(SL_Sv4_Ans=\"[menu]\",\"\",\n\nIF(SL_Sv4_Ans=\"yes\",5,\nIF(SL_Sv4_Ans=\"maybe\",3,\nIF(SL_Sv4_Ans=\"no\",0,\"\")))))","v":""},"[menu]","Bare, dry soil contamination can become airborne particulates and present an inhalation exposure.  This is more important in arid or windy environments like in Eastern Washington or in seasonally dry areas. "]
[null,null,null,null,null,"yes","Answer \"yes\", if sensitive people use or occupy areas within 500 lateral feet of dusty airborne contamination."]
[null,null,null,null,null,"maybe","Answer \"maybe\", if sensitive people occasionally could use or occupy areas within 500 lateral feet of dusty airborne contamination."]
[null,null,null,null,null,"no","Answer \"no\", if the soil contamination is capped or would not likely present dusty conditions."]
[null,"SL_Sv5","Have any volatile chemicals been released to, or are identified in, site soil or groundwater?",{"$f":"IF(SL_ExScore=\"D\",\"SKIP\",\nIF(SL_Sv5_Ans=\"[menu]\",\"\",\n\nIF(SL_Sv5_Ans=\"yes\",5,\nIF(SL_Sv5_Ans=\"maybe\",3,\nIF(SL_Sv5_Ans=\"no\",0,\"\")))))","v":""},"[menu]","Compare site confirmed or suspected chemicals with those listed as extremely toxic in the \"SHARP User Toxicity Scoring Reference\", under the heading, \"Soil, Groundwater, Air, SHARP Toxicity Category\"."]
[null,null,null,null,null,"► SHARP User Toxicity Scoring Reference (inside SHARP Tool)"]
[null,null,null,null,null,"yes","Answer \"yes\", if any volatile chemical has been released to, or is identified in, site soil or groundwater.  "]
[null,null,null,null,null,"maybe","Answer \"maybe\", if any volatile chemical has likely been released to, or identified in, site soil or groundwater, but analytical data are not available to confirm."]
[null,null,null,null,null,"no","Answer \"no\", if analytical data confirm no volatile chemical in soil, or there is no credible reason to suspect a release."]
[null,"SL_Sv6","Does soil contamination pose an immediate risk to groundwater?",{"$f":"IF(SL_ExScore=\"D\",\"SKIP\",\nIF(SL_Sv6_Ans=\"[menu]\",\"\",\n\nIF(SL_Sv6_Ans=\"yes\",5,\nIF(SL_Sv6_Ans=\"maybe\",3,\nIF(SL_Sv6_Ans=\"no\",0,\"\")))))","v":""},"[menu]","Contaminants can move through soil to groundwater.  Some contaminants can more easily reach groundwater in sandy or gravelly soil than in clayey soil.   Assume the soil has enough soil permeability to allow contamination to move through the soil, unless site information (e.g., boring logs) indicates one or more separating lower-permeability soil layer is present."]
[null,null,null,null,null,"► WAC 173-340-747. Deriving soil concentrations for groundwater protection"]
[null,null,null,null,null,"yes","Answer \"yes\", if contamination is confirmed in both soil and groundwater."]
[null,null,null,null,null,"maybe","Answer \"maybe\", if both of the following are true."]
[null,null,null,null,null,"•","Soil contaminant levels are above potentially applicable MTCA cleanup standards for the soil-to-groundwater pathway."]
[null,null,null,null,null,"•","Groundwater is not excessively deep or is not separated from soil contamination by sufficiently low-permeability strata, such as clay-rich soils."]
[null,null,null,null,null,"no","Answer \"no\", if either of the following is true."]
[null,null,null,null,null,"•","Soil contamination is relatively \"old\" with no evidence of having reached groundwater."]
[null,null,null,null,null,"•","Groundwater is relatively excessively \"deep\" or is separated from contamination by sufficiently low-permeability strata."]
[null,"SL_Sv7","Do soil contaminants pose an immediate risk to surface water or sediment?",{"$f":"IF(SL_ExScore=\"D\",\"SKIP\",\nIF(SL_Sv7_Ans=\"[menu]\",\"\",\n\nIF(SL_Sv7_Ans=\"yes\",5,\nIF(SL_Sv7_Ans=\"maybe\",3,\nIF(SL_Sv7_Ans=\"no\",0,\"\")))))","v":""},"[menu]","Contaminated runoff poses a common risk to surface water.  The runoff pathway can be direct or indirect such as through water flowing in trenches or storm sewer systems that discharge to surface water."]
[null,null,null,null,null,"yes","Answer \"yes\", if analytical data confirm an impact to surface water or sediment."]
[null,null,null,null,null,"maybe","Answer \"maybe\", if at least one of the following is true, and sampling has not ruled out surface water and/or sediment impacts."]
[null,null,null,null,null,"•","On-site soil contamination is near or on a waterfront."]
[null,null,null,null,null,"•","A permitted stormwater treatment system is in place and operating as intended."]
[null,null,null,null,null,"•","The site has current or historic wastewater or storm water systems with drainage to surface water or a waterfront."]
[null,null,null,null,null,"•","At any time, the site has supported over-water activities like log rafting, boat maintenance, utility conveyance, or fuel or bilge transfer."]
[null,null,null,null,null,"no","Answer \"no\", if runoff from the site cannot reach or is unlikely to reach surface water."]
[null,null,null,"Severity score ►",{"$f":"IF(SL_ExScore=\"D\",\"4\",\nIF(OR(SL_Sv1_Score=\"\",SL_Sv2_Score=\"\",SL_Sv3_Score=\"\",SL_Sv4_Score=\"\",SL_Sv5_Score=\"\",SL_Sv6_Score=\"\",SL_Sv7_Score=\"\"),\"SvGo\",\n\nIF(SL_SvQSum>=SL_SvThresh,1,\nIF(SL_SvQSum>=SL_SvThresh*2/3,2,\nIF(SL_SvQSum>=SL_SvThresh/3,3,4)))))","v":"SvGo"}]
[]
[3,"Select confidence level",null,null,"[menu]",{"$f":"CONCATENATE(SL_Conf,\" confidence\")","v":"[menu] confidence"}]
[]
[4,"Enter comments"]
[]
[]
[]
[]
[]
[]
[]
[]
[]
[]
[null,"Severity score inputs"]
[null,40,"= SvMaxPoints  |  maximum sum of severity Q-scores"]
[null,{"$f":"SUM(SL_Sv1_Score,SL_Sv2_Score,SL_Sv3_Score,SL_Sv4_Score,SL_Sv5_Score,SL_Sv6_Score,SL_Sv7_Score)","v":0},"= SvQSum  |  sum of severity Q-scores"]
[null,20,"= SvThresh  |  Threshold"]
[null,{"$f":"SL_SvQSum/SL_SvMaxPoints","v":0},"= SvQSumMaxRatio  |  SvQSum/SvMaxPoints"]

{"sheet":"GW","index":3,"n_rows":96,"n_cols":7,"rows_kept":96,"cut":false,"hidden":false,"merged":[[6,5,6,6],[7,5,7,6],[22,5,22,6],[46,5,46,6],[47,5,47,6],[81,1,89,6],[3,5,3,6],[4,5,4,6],[5,5,5,6],[18,5,18,6],[19,5,19,6],[20,5,20,6],[21,5,21,6],[69,5,69,6],[70,5,70,6],[62,5,62,6],[68,5,68,6],[52,5,52,6],[40,5,40,6],[41,5,41,6],[45,5,45,6],[53,5,53,6],[57,5,57,6],[58,5,58,6],[32,5,32,6],[33,5,33,6],[37,5,37,6],[36,5,36,6]]}
[null,{"$f":"CONCATENATE(\"Groundwater = \",GW_ExScore,GW_SvScore)","v":"Groundwater = ExGo SvGo"}]
[]
[1,"Answer exposure questions",null,"Q-score","answer",null,"Hints"]
[null,"GW_Ex1","Is there a release or impact from the site to groundwater that needs additional cleanup action?",{"$f":"IF(GW_Ex1_Ans=\"[menu]\",\"\",\nIF(OR(GW_Ex1_Ans=\"yes\",GW_Ex1_Ans=\"maybe\"),\"continue\",\n\nIF(GW_Ex1_Ans=\"no\",\"D\",\"\")))","v":""},"[menu]","If cleanup or screening levels have been established for the site, use those for comparison.  For sites where those have not been established, default to Methods A or B cleanup levels protective of potable groundwater."]
[null,null,null,null,null,"More simply stated, Method A cleanup levels may apply at sites that have few hazardous substances, assuming a relatively straightforward cleanup strategy is known or likely.  "]
[null,null,null,null,null,"Consider Method A, if it is still early in the investigation process, although Method B may be used at any site where contaminants are not listed under Method A."]
[null,null,null,null,null,"► See WAC 173-340-704. Use of Method A"]
[null,null,null,null,null,"► See WAC 173-340-705. Use of Method B"]
[null,null,null,null,null,"yes","Answer \"yes\", if either of the following is true."]
[null,null,null,null,null,"•","Available data indicate contaminant levels are above the applicable cleanup or screening level. "]
[null,null,null,null,null,"•","An oil-like sheen has been observed on groundwater."]
[null,null,null,null,null,"maybe","Answer \"maybe\", if data are not available, and any one of the following is true."]
[null,null,null,null,null,"•","Elevated contaminant concentrations are suspected."]
[null,null,null,null,null,"•","A sufficient range of suspected chemicals has not been tested."]
[null,null,null,null,null,"•","Excavation or well water samples emit a unnatural odor."]
[null,null,null,null,null,"no","Answer \"no\", if either of the following is true."]
[null,null,null,null,null,"•","A sufficient range of suspected chemcials has been tested, and no contaminants have been identified in groundwater."]
[null,null,null,null,null,"•","Contaminants have been cleaned up or attenuated to within applicable cleanup standards."]
[null,"GW_Ex2","Is any drinking water well impacted by site contaminants?",{"$f":"IF(GW_Ex1_Score=\"D\",\"SKIP\",\nIF(GW_Ex2_Ans=\"[menu]\",\"\",\n\nIF(GW_Ex2_Ans=\"yes\",\"A\",\nIF(GW_Ex2_Ans=\"maybe\",\"B\",\nIF(GW_Ex2_Ans=\"no\",\"C\",\"\")))))","v":""},"[menu]","Access Ecology's EIM Search, the Washingotn State Well Report Viewer Map, the DOH SWAP Map, a county water well map, and other sources to access well logs, groundwater monitoring data, and other groundwater information for the site and vicinity. "]
[null,null,null,null,null,"► EIM Search (internal)"]
[null,null,null,null,null,"► Washington State Well Report Viewer"]
[null,null,null,null,null,"► DOH Source Water Assessment Program (SWAP) Maps"]
[null,null,null,null,null,"See the SHARP Tool Manual instructions for collecting SWAP Map information."]
[null,null,null,null,null,"yes","Answer \"yes\", if any of the following are true."]
[null,null,null,null,null,"•","Data confirm a drinkng water well has been affected."]
[null,null,null,null,null,"•","Groundwater data show concentrations greater than any MTCA clean up standard."]
[null,null,null,null,null,"•","Using the SWAP Map, the site plume is estimated to be within the 10-year travel-time zone of a Group A or B water supply well."]
[null,null,null,null,null,"maybe","Answer \"maybe\", if using the Well Report Map, any domestic drinking water well or irrigation well is identified within 500 feet of the site."]
[null,null,null,null,null,"no","Answer \"no\", if a municipal or community system serves water from a surface water source to the site, and groundwater is not a likely or viable water supply source."]
[null,null,null,"Exposure score ►",{"$f":"IF(GW_Ex1_Score=\"D\",\"D\",\nIF(OR(GW_Ex1_Score=\"\",GW_Ex2_Score=\"\"),\"ExGo \",\n\nIF(GW_Ex2_Score=\"A\",\"A\",\nIF(GW_Ex2_Score=\"B\",\"B\",\nIF(GW_Ex2_Score=\"C\",\"C\",\"\")))))","v":"ExGo "}]
[]
[2,"Answer severity questions",null,"Q-score","answer",null,"Hints"]
[null,"GW_Sv1","Is any extremely toxic chemical in groundwater?",{"$f":"IF(GW_ExScore=\"D\",\"SKIP\",\nIF(GW_Sv1_Ans=\"[menu]\",\"\",\n\nIF(GW_Sv1_Ans=\"yes\",5,\nIF(GW_Sv1_Ans=\"maybe\",3,\nIF(GW_Sv1_Ans=\"no\",0,\"\")))))","v":""},"[menu]","Compare site confirmed or suspected chemicals with those listed as extremely toxic in the \"SHARP User Toxicity Scoring Reference\", under the heading, \"Soil, Groundwater, Air, SHARP Toxicity Category\"."]
[null,null,null,null,null,"► Go to ChemTox Tab"]
[null,null,null,null,null,"yes or\n maybe","Answer \"yes\" or \"maybe\", if any site chemical is listed as extremely toxic."]
[null,null,null,null,null,"no","Answer \"no\", if no site chemical is listed as extremely toxic."]
[null,"GW_Sv2","Is any very toxic chemical in groundwater?",{"$f":"IF(GW_ExScore=\"D\",\"SKIP\",\nIF(OR(GW_Sv1_Score=5,GW_Sv1_Score=3),\"SKIP\",\nIF(GW_Sv2_Ans=\"[menu]\",\"\",\n\nIF(GW_Sv2_Ans=\"yes\",5,\nIF(GW_Sv2_Ans=\"maybe\",3,\nIF(GW_Sv1_Ans=\"no\",0,\"\"))))))","v":""},"[menu]","Compare site confirmed or suspected chemicals with those listed as very toxic in the \"SHARP User Toxicity Scoring Reference\", under the heading, \"Soil, Groundwater, Air, SHARP Toxicity Category\"."]
[null,null,null,null,null,"► Go to ChemTox Tab"]
[null,null,null,null,null,"yes or\nmaybe","Answer \"yes\" or \"maybe\", if any site chemical is listed as very toxic."]
[null,null,null,null,null,"no","Answer \"no\", if no site chemical is listed as very toxic."]
[null,"GW_Sv3","Is the contaminated groundwater within the 10-year travel-time zone of a Group A or B water supply well, or within 500 feet of a domestic water well or irrigation well? ",{"$f":"IF(GW_ExScore=\"D\",\"SKIP\",\nIF(GW_Sv3_Ans=\"[menu]\",\"\",\n\nIF(GW_Sv3_Ans=\"yes\",10,\nIF(GW_Sv3_Ans=\"maybe\",6,\nIF(GW_Sv3_Ans=\"no\",0,\"\")))))","v":""},"[menu]","Use the SWAP Map, and the Well Report Map \"Help\" tab to access well logs, groundwater monitoring data, and other information for the site and vicinity.  See if a site or vicinity water supply well derives water from the affected aquifer."]
[null,null,null,null,null,"►Ecology's Well Report Viewer Map"]
[null,null,null,null,null,"yes","Answer \"yes\", if any water supply wells meet these criteria, and well data are of good or useful quality."]
[null,null,null,null,null,"maybe","Answer \"maybe\", if any water supply wells meet these criteria, but information is minimal or of lesser quality."]
[null,null,null,null,null,"no","Answer \"no\", if no known wells meet these criteria."]
[null,"GW_Sv4","Has any water supply well been adversely affected by site contamination, including any taken out of service?",{"$f":"IF(GW_ExScore=\"D\",\"SKIP\",\nIF(GW_Sv4_Ans=\"[menu]\",\"\",\n\nIF(GW_Sv4_Ans=\"yes\",10,\nIF(GW_Sv4_Ans=\"maybe\",6,\nIF(GW_Sv4_Ans=\"no\",0,\"\")))))","v":""},"[menu]","Access Ecology's EIM Search, Well Report Map, DOH's SWAP Map, a county water well map, or other sources to access well logs, groundwater monitoring data, and other groundwater information for the site and vicinity. "]
[null,null,null,null,null,"► Ecology's EIM Search (internal)"]
[null,null,null,null,null,"► Washington State Well Report Viewer"]
[null,null,null,null,null,"See the SHARP Tool Manual instructions to collect data from the Well Report Viewer."]
[null,null,null,null,null,"yes","Answer \"yes\", if these conditions have been confirmed by sampling data and/or water utility data."]
[null,null,null,null,null,"maybe","Answer \"maybe\", if these conditions are alleged or suspected."]
[null,null,null,null,null,"no","Answer \"no\", if no wells have been affected."]
[null,"GW_Sv5","Is any LNAPL (light non-aqueous phase liquid) detected in groundwater at the site?",{"$f":"IF(GW_ExScore=\"D\",\"SKIP\",\nIF(GW_Sv5_Ans=\"[menu]\",\"\",\n\nIF(GW_Sv5_Ans=\"yes\",5,\nIF(GW_Sv5_Ans=\"maybe\",3,\nIF(GW_Sv6_Ans=\"no\",0,\"\")))))","v":""},"[menu]","Access the following source for a list of common LNAPL chemicals."]
[null,null,null,null,null,"► EPA Ground Water Issue, Light Nonaqueous Phase Liquids"]
[null,null,null,null,null,"yes","Answer \"yes\", if floating LNAPL is measurable at 0.01 feet thick or greater in well or excavation water."]
[null,null,null,null,null,"maybe","Answer \"maybe\", if a sheen has been observed on groundwater but not at a measurable thickness."]
[null,null,null,null,null,"no","Answer \"no\", if LNAPL on site groundwater has not been observed."]
[null,"GW_Sv6","Is any DNAPL (dense non-aqueous phase liquid) detected in groundwater at the site?",{"$f":"IF(GW_ExScore=\"D\",\"SKIP\",\nIF(GW_Sv6_Ans=\"[menu]\",\"\",\n\nIF(GW_Sv6_Ans=\"yes\",5,\nIF(GW_Sv6_Ans=\"maybe\",3,\nIF(GW_Sv6_Ans=\"no\",0,\"\")))))","v":""},"[menu]","Access the following source for a list of common DNAPL chemicals."]
[null,null,null,null,null,"► EPA Ground Water Issue, Dense Nonaqueous Phase Liquids"]
[null,null,null,null,null,"yes","Answer \"yes\", if a measurable thickness of DNAPL has been observed in a site well."]
[null,null,null,null,null,"maybe","Answer \"maybe\", if concentrations of DNAPL chemicals were measured in groundwater samples at concentration near or above their saturation levels."]
[null,null,null,null,null,"no","Answer \"no\", if DNAPL chemicals have not been observed on site."]
[null,"GW_Sv7","Does a site plume extend beyond the source property boundary?",{"$f":"IF(GW_ExScore=\"D\",\"SKIP\",\nIF(GW_Sv7_Ans=\"[menu]\",\"\",\n\nIF(GW_Sv7_Ans=\"yes\",5,\nIF(GW_Sv7_Ans=\"maybe\",3,\nIF(GW_Sv7_Ans=\"no\",0,\"\")))))","v":""},"[menu]","Compare the site boundary, known or estimated, with the known or likely extend of the plume. "]
[null,null,null,null,null,"yes","Answer \"yes\", if the estimated leading edge of a plume extends beyond the property boundary of a release source, based on data."]
[null,null,null,null,null,"maybe","Answer \"maybe\", if either of the following is true:"]
[null,null,null,null,null,"•","Site conditions indicate the leading edge of a plume likely extends beyond the source property boundary, without analytical data."]
[null,null,null,null,null,"•","Site plume is contained within the source property, based on data."]
[null,null,null,null,null,"no","Data indicate that the plume does not likely, or is not likely to, extend off the property."]
[null,"GW_Sv8","Does a site plume pose a potential risk to downgradient surface water or sediment?",{"$f":"IF(GW_ExScore=\"D\",\"SKIP\",\nIF(GW_Sv8_Ans=\"[menu]\",\"\",\n\nIF(GW_Sv8_Ans=\"yes\",5,\nIF(GW_Sv8_Ans=\"maybe\",3,\nIF(GW_Sv8_Ans=\"no\",0,\"\")))))","v":""},"[menu]","Identify downgradient surface water or sediment sources in the direction of groundwater flow from the site.  Estimate the risk to those sources from the site plume."]
[null,null,null,null,null,"► Ecology's TCP Maps database (internal tool)"]
[null,null,null,null,null,"► Google Earth"]
[null,null,null,null,null,"yes","Answer \"yes\", if analytical data or field observations indicate a groundwater impact to surface water or sediment."]
[null,null,null,null,null,"maybe","Answer \"maybe\", if either of the following is true:"]
[null,null,null,null,null,"•","A plume is upgradient of nearby surface water, based on water level data and the estimated flow direction."]
[null,null,null,null,null,"•","Nearby surface water is present, and groundwater flow conditions are not well understood."]
[null,null,null,null,null,"no","Answer \"no\", if downgradient surface water or sediment is not at risk."]
[null,null,null,"Severity score ►",{"$f":"IF(GW_ExScore=\"D\",\"4\",\nIF(OR(GW_Sv1_Score=\"\",GW_Sv2_Score=\"\",GW_Sv3_Score=\"\",GW_Sv4_Score=\"\",GW_Sv5_Score=\"\",GW_Sv6_Score=\"\",GW_Sv7_Score=\"\",GW_Sv8_Score=\"\"),\"SvGo\",\n\nIF(GW_SvQSum>=GW_SvThresh,1,\nIF(GW_SvQSum>=GW_SvThresh*2/3,2,\nIF(GW_SvQSum>=GW_SvThresh/3,3,4)))))","v":"SvGo"}]
[]
[3,"Select confidence level",null,null,"[menu]",{"$f":"CONCATENATE(GW_Conf,\" confidence\")","v":"[menu] confidence"}]
[]
[4,"Enter comments"]
[]
[]
[]
[]
[]
[]
[]
[]
[]
[]
[null,"Severity score inputs"]
[null,50,"= SvMaxPoints  |  maximum sum of severity Q-scores"]
[null,{"$f":"SUM(GW_Sv1_Score,GW_Sv2_Score,GW_Sv3_Score,GW_Sv4_Score,GW_Sv5_Score,GW_Sv6_Score,GW_Sv7_Score,GW_Sv8_Score)","v":0},"= SvQSum  |  sum of severity Q-scores"]
[null,20,"= SvThresh  |  Threshold"]
[null,{"$f":"GW_SvQSum/GW_SvMaxPoints","v":0},"= SvQSumMaxRatio  |  SvQSum/SvMaxPoints"]

{"sheet":"SW","index":4,"n_rows":103,"n_cols":7,"rows_kept":103,"cut":false,"hidden":false,"merged":[[88,1,96,6],[6,5,6,6],[5,5,5,6],[4,5,4,6],[20,5,20,6],[30,5,30,6],[29,5,29,6],[46,5,46,6],[45,5,45,6],[52,5,52,6],[64,5,64,6],[63,5,63,6],[73,5,73,6],[53,5,53,6],[40,5,40,6],[41,5,41,6],[3,5,3,6],[10,5,10,6],[17,5,17,6],[18,5,18,6],[19,5,19,6]]}
[null,{"$f":"CONCATENATE(\"Surface Water = \",SW_ExScore,SW_SvScore)","v":"Surface Water = ExGo SvGo"}]
[]
[1,"Answer exposure questions",null,"Q-score","answer",null,"Hints"]
[null,"SW_Ex1","Is surface water present in an on-site area of contaminated soil?",{"$f":"IF(SW_Ex1_Ans=\"[menu]\",\"\",\n\nIF(OR(SW_Ex1_Ans=\"yes\",SW_Ex1_Ans=\"maybe\"),\"continue\",\nIF(SW_Ex1_Ans=\"no\",\"D\",\"\")))","v":""},"[menu]","Consider the MTCA definition of surface water before answering this question.  As defined in MTCA, surface water conditions must be present for at least six consecutive weeks annually to meet the MTCA definition of surface water.  Use mapping resources to identify or estimate the presence of surface water or its indicators."]
[null,null,null,null,null,"► Google Earth"]
[null,null,null,null,null,"► Ecology's TCP Maps database (internal)"]
[null,null,null,null,null,"► DFW Priority Habitat and Species Map Tool"]
[null,null,null,null,null,"yes","Answer \"yes\", if evidence of surface water is visible or reported in a contaminated area."]
[null,null,null,null,null,"maybe","Answer \"maybe\", if surface water is likely present, but available information is not definitive."]
[null,null,null,null,null,"no","Answer \"no\", if surface water is not on the site or in the impacted area."]
[null,"SW_Ex2","Is there a release or impact from the site to surface water that needs cleanup action?",{"$f":"IF(SW_Ex1_Score=\"D\",\"SKIP\",\nIF(SW_Ex2_Ans=\"[menu]\",\"\",\n\nIF(OR(SW_Ex2_Ans=\"yes\",SW_Ex2_Ans=\"maybe\"),\"continue\",\nIF(SW_Ex2_Ans=\"no\",\"D\",\" \"))))","v":""},"[menu]","If site-specific cleanup levels are not available, use the applicable values for marine or fresh water in CLARC for screening."]
[null,null,null,null,null,"yes","Answer \"yes\", if any surface water contaminant levels are above potentially applicable MTCA cleanup standards, based on analytical data."]
[null,null,null,null,null,"maybe","Answer \"maybe\", if analytical data are not available, and either of the following is true."]
[null,null,null,null,null,"•","Impact to surface water is suspected."]
[null,null,null,null,null,"•","A sheen on the water is not biological in nature."]
[null,null,null,null,null,"•","No contaminants have been identified in groundwater, and a sufficient range of suspected chemicals has been tested."]
[null,null,null,null,null,"no","Answer \"no\", if an impact is not likely, or a sheen is known or likely to be biological in nature."]
[null,"SW_Ex3","Is the site surface water used as a drinking water source?",{"$f":"IF(OR(SW_Ex1_Score=\"D\",SW_Ex2_Score=\"D\"),\"SKIP\",\nIF(SW_Ex3_Ans=\"[menu]\",\"\",\n\nIF(SW_Ex3_Ans=\"yes\",\"A\",\nIF(SW_Ex3_Ans=\"maybe\",\"B\",\nIF(SW_Ex3_Ans=\"future potential\",\"C\",\nIF(SW_Ex3_Ans=\"no\",\"D\",\" \"))))))","v":""},"[menu]","Use Ecology's online Water Rights Search to find water right permits, certificates, or claims, which can help identify surface water sources used for drinking water."]
[null,null,null,null,null,"► Ecology's Washington Water Rights Search"]
[null,null,null,null,null,"Use the Washington Department of Health (DOH) Source Water Assessment Program (SWAP) GIS mapping tool to identify if site surface water is in a drinking water source protection area."]
[null,null,null,null,null,"► DOH Source Water Assessment Program (SWAP) Maps"]
[null,null,null,null,null,"See the SHARP Tool instructions for collecting SWAP Map information."]
[null,null,null,null,null,"yes","Answer \"yes\", if either of the following is true."]
[null,null,null,null,null,"•","At least one water right permit, certificate, or claim is associated with the site."]
[null,null,null,null,null,"•","The site is located in a state drinking water source protection area."]
[null,null,null,null,null,"maybe","Answer \"maybe\", if the site's surface water is of sufficient quality and quantity to be used as a drinking water source."]
[null,null,null,null,null,"no","Answer \"no\", if either of the following is true."]
[null,null,null,null,null,"•","The site surface water volume is too small to support a viable drinking water supply."]
[null,null,null,null,null,"•","People have no access to site surface water."]
[null,"SW_Ex4","Is site surface water used as a publicly accessible fishing resource?",{"$f":"IF(OR(SW_Ex1_Score=\"D\",SW_Ex2_Score=\"D\"),\"SKIP\",\nIF(SW_Ex4_Ans=\"[menu]\",\"\",\n\nIF(SW_Ex4_Ans=\"yes\",\"A\",\nIF(SW_Ex4_Ans=\"maybe\",\"B\",\nIF(SW_Ex4_Ans=\"potential future\",\"C\",\nIF(SW_Ex4_Ans=\"no\",\"D\",\" \"))))))","v":""},"[menu]","Any river or any area on the Puget Sound is considered a fishing source.  Tribes have the specifically retained right to take fish in their “usual and accustomed” areas."]
[null,null,null,null,null,"► Ecology's Working with tribal governments"]
[null,null,null,null,null,"yes or\nmaybe","Answer \"yes\" or \"maybe\", if either of the following is true."]
[null,null,null,null,null,"•","The site is known to be used for recreational or subsisitence fishing."]
[null,null,null,null,null,"•","The site is adjacent to any river shoreline or a Puget Sound shoreline."]
[null,null,null,null,null,"no","Answer \"no\", if either of the following is true."]
[null,null,null,null,null,"•","People have no access to on-site contaminated surface water."]
[null,null,null,null,null,"•","The site is not adjacent to a river shoreline or a Puget Sound shoreline."]
[null,null,null,"Exposure score ►",{"$f":"IF(OR(SW_Ex1_Score=\"\",SW_Ex2_Score=\"\",SW_Ex3_Score=\"\",SW_Ex4_Score=\"\"),\"ExGo \",\nIF(SW_Ex1_Ans=\"no\",\"D\",\nIF(AND(SW_Ex1_Score=\"D\",SW_Ex2_Score=\"D\",SW_Ex3_Score=\"D\",SW_Ex4_Score=\"D\"),\"D\",\n\nIF(OR(SW_Ex3_Score=\"A\",SW_Ex4_Score=\"A\"),\"A\",\nIF(OR(SW_Ex3_Score=\"B\",SW_Ex4_Score=\"B\"),\"B\",\nIF(OR(SW_Ex3_Score=\"C\",SW_Ex4_Score=\"C\"),\"C\",\n\nIF(AND(SW_Ex3_Score=\"D\",SW_Ex4_Score=\"D\"),\"D\",\"\")))))))","v":"ExGo "}]
[]
[2,"Answer severity questions",null,"Q-score","answer",null,"Hints"]
[null,"SW_Sv1","Is a PBT (persistent biocaccumulative toxic) chemical impacting or is likely to impact surface water?",{"$f":"IF(SW_ExScore=\"D\",\"SKIP\",\nIF(SW_Sv1_Ans=\"[menu]\",\"\",\n\nIF(SW_Sv1_Ans=\"yes\",10,\nIF(SW_Sv1_Ans=\"maybe\",6,\nIF(SW_Sv1_Ans=\"no\",0,\"\")))))","v":""},"[menu]","Access the PBT list in WAC 173-333-310(2) to answer this question."]
[null,null,null,null,null,"▶ WAC 173-333-310(2).  PBT list"]
[null,null,null,null,null,"yes","Answer \"yes\", if a PBT chemical has impacted surface water, based on analytical data."]
[null,null,null,null,null,"maybe","Answer \"maybe\", if analytical data are not available, but PBT chemicals are suspected in sediment."]
[null,null,null,null,null,"no","Answer \"no\", if no PBT chemical has been released."]
[null,"SW_Sv2","Is any extremely toxic chemical impacting a marine or freshwater ecological community?",{"$f":"IF(SW_ExScore=\"D\",\"SKIP\",\nIF(OR(SW_Sv1_Score=10,SW_Sv1_Score=6),\"SKIP\",\nIF(SW_Sv2_Ans=\"[menu]\",\"\",\n\nIF(SW_Sv2_Ans=\"yes\",10,\nIF(SW_Sv2_Ans=\"maybe\",6,\nIF(SW_Sv2_Ans=\"no\",0,\"\"))))))","v":""},"[menu]","Compare site confirmed or suspected chemicals with those listed as extremely toxic in the \"SHARP User Toxicity Scoring Reference\", under the heading, \"Surface Water, SHARP Toxicity Category\"."]
[null,null,null,null,null,"► Go to ChemTox Tab"]
[null,null,null,null,null,"yes","Answer \"yes\", if data indicate an extremely toxic chemical is impacting a freshwater or marine ecological community."]
[null,null,null,null,null,"maybe","Answer \"maybe\", if analytical data are not available, but an extremely toxic chemical may be impacting a freshwater or marine ecological community or is suspected in sediment."]
[null,null,null,null,null,"no","Answer \"no\", if either of the following is true."]
[null,null,null,null,null,"•","No extremely toxic chemical is impacting a freshwater or marine ecological community."]
[null,null,null,null,null,"•","Data indicate no impact to sediment."]
[null,"SW_Sv3","Are any \"at-risk\" aquatic species on site at any time of year or impacted by site contamination?",{"$f":"IF(SW_ExScore=\"D\",\"SKIP\",\nIF(SW_Sv3_Ans=\"[menu]\",\"\",\n\nIF(SW_Sv3_Ans=\"yes\",10,\nIF(SW_Sv3_Ans=\"maybe\",6,\nIF(SW_Sv3_Ans=\"no\",0,\"\")))))","v":""},"[menu]","The Washington DFW Priority Habitat and Species \"PHS on the Web\" application allows the ability to navigate to the site to create a Priority Habitats and Species report that includes nearby priority habitats and species. "]
[null,null,null,null,null,"► DFW PHS on the Web"]
[null,null,null,null,null,"yes","Answer \"yes\", if either of the following is true:"]
[null,null,null,null,null,"•","An at-risk species has access to the site at any time of year."]
[null,null,null,null,null,"•","An at-risk species is impacted by site contamination."]
[null,null,null,null,null,"maybe","Answer \"maybe\", if either of the following is likely to be true:"]
[null,null,null,null,null,"•","An at-risk species has access to the site at any time of year, but more information is needed to confirm."]
[null,null,null,null,null,"•","An at-risk species is may be impacted by site contamination, but more information is needed to confirm."]
[null,null,null,null,null,"no","Answer \"no\", if either of the following is true."]
[null,null,null,null,null,"•","It is not likely or possible for an at-risk aquatic species to gain access to the site at any time of the year."]
[null,null,null,null,null,"•","It is not likely or possible for an at-risk aquatic species to be impacted by site contamination."]
[null,"SW_Sv4","Is the site an upland source to surface water that is used for recreation within 2 miles?",{"$f":"IF(SW_ExScore=\"D\",\"SKIP\",\nIF(SW_Sv4_Ans=\"[menu]\",\"\",\n\nIF(SW_Sv4_Ans=\"yes\",5,\nIF(SW_Sv4_Ans=\"maybe\",3,\nIF(SW_Sv4_Ans=\"no\",0,\"\")))))","v":""},"[menu]","Some recreational activities take place in or on the water, such as swimming, boating, fishing, and surOther activities are enhanced by being close to water, such as hiking, nature viewing, and hunting waterfowl."]
[null,null,null,null,null,"► see DFW Places to Go to identify:"]
[null,null,null,null,null,"• fishing and shellfishing locations     • public fishing piers"]
[null,null,null,null,null,"• clam, mussel, and oyster beaches     • marine fishing areas"]
[null,null,null,null,null,"• lowland and high lakes       • DFW water access areas"]
[null,null,null,null,null,"yes","Answer \"yes\", if the site is within 2 miles upland of a known aquatic recreational source."]
[null,null,null,null,null,"maybe","Answer \"maybe\", if either of the following is true:"]
[null,null,null,null,null,"•","The site is within 2 miles upland of a water source that may be used for aquatic recreation, based on the general site setting."]
[null,null,null,null,null,"•","The site is within 2 miles upland of a water source that is protected from aquatic recreational uses, such as by fencing."]
[null,null,null,null,null,"no","Answer \"no\", if the site is not an upland source."]
[null,"SW_Sv5","Is the site within 2 miles upland of a current or suitable surface drinking water resource?",{"$f":"IF(SW_ExScore=\"D\",\"SKIP\",\nIF(SW_Sv5_Ans=\"[menu]\",\"\",\n\nIF(SW_Sv5_Ans=\"yes\",10,\nIF(SW_Sv5_Ans=\"maybe\",6,\nIF(SW_Sv5_Ans=\"no\",0,\"\")))))","v":""},"[menu]","Use the DOH SWAP map and Washingtno State Well Report Viewer to find information on public supply well water quality."]
[null,null,null,null,null,"► Ecology's Washington State Well Report Viewer"]
[null,null,null,null,null,"► DOH Source Water Assessment Program (SWAP) Maps"]
[null,null,null,null,null,"yes","Answer \"yes\", if either of the following is true."]
[null,null,null,null,null,"•","A surface drinking water supply intake is mapped within 2 miles downstream of contamination."]
[null,null,null,null,null,"•","Downstream surface water is of sufficient quality to support a suitable drinking water source, if data confirm a suitable source."]
[null,null,null,null,null,"maybe","Answer \"maybe\", if either of the following is true."]
[null,null,null,null,null,"•","Potential surface drinking water use is suspected, based solely on the general site setting. "]
[null,null,null,null,null,"•","Downstream surface water is of sufficient quality to support a suitable drinking water source, but data do not confirm it as a suitable source."]
[null,null,null,null,null,"no","Answer \"no\", if the site is not an upland source to a current or suitable drinking water source."]
[null,null,null,"Severity score ►",{"$f":"IF(SW_ExScore=\"D\",\"4\",\nIF(OR(SW_Sv1_Score=\"\",SW_Sv2_Score=\"\",SW_Sv3_Score=\"\",SW_Sv4_Score=\"\",SW_Sv5_Score=\"\"),\"SvGo\",\n\nIF(SW_SvQSum>=SW_SvThresh,1,\nIF(SW_SvQSum>=SW_SvThresh*2/3,2,\nIF(SW_SvQSum>=SW_SvThresh/3,3,4)))))","v":"SvGo"}]
[]
[3,"Select confidence level",null,null,"[menu]",{"$f":"CONCATENATE(SW_Conf,\" confidence\")","v":"[menu] confidence"}]
[]
[4,"Enter comments"]
[]
[]
[]
[]
[]
[]
[]
[]
[]
[]
[null,"Severity score inputs"]
[null,45,"= SvMaxPoints  |  maximum sum of severity Q-scores"]
[null,{"$f":"SUM(SW_Sv1_Score,SW_Sv2_Score,SW_Sv3_Score,SW_Sv4_Score,SW_Sv5_Score)","v":0},"= SvQSum  |  sum of severity Q-scores"]
[null,20,"= SvThresh  |  Threshold"]
[null,{"$f":"SW_SvQSum/SW_SvMaxPoints","v":0},"= SvQSumMaxRatio  |  SvQSum/SvMaxPoints"]

{"sheet":"SD","index":5,"n_rows":120,"n_cols":7,"rows_kept":120,"cut":false,"hidden":false,"merged":[[99,1,113,6],[76,5,76,6],[77,5,77,6],[78,5,78,6],[79,5,79,6],[80,5,80,6],[81,5,81,6],[82,5,82,6],[88,5,88,6],[90,5,90,6],[89,5,89,6],[87,5,87,6],[86,5,86,6],[85,5,85,6],[84,5,84,6],[83,5,83,6],[71,5,71,6],[72,5,72,6],[52,5,52,6],[41,5,41,6],[42,5,42,6],[47,5,47,6],[48,5,48,6],[54,5,54,6],[53,5,53,6],[58,5,58,6],[59,5,59,6],[60,5,60,6],[61,5,61,6],[62,5,62,6],[43,5,43,6],[3,5,3,6],[7,5,7,6],[15,5,15,6],[16,5,16,6],[26,5,26,6],[20,5,20,6],[21,5,21,6],[22,5,22,6]]}
[null,{"$f":"CONCATENATE(\"Sediment = \",SD_ExScore,SD_SvScore)","v":"Sediment = ExGo SvGo"}]
[]
[1,"Answer exposure questions",null,"Q-score","answer",null,"Hints"]
[null,"SD_Ex1","Is sediment present at the site or on adjacent parcels?",{"$f":"IF(SD_Ex1_Ans=\"[menu]\",\"\",\nIF(SW_ExScore=\"D\", \"D\",\n\nIF(OR(SD_Ex1_Ans=\"yes\",SD_Ex1_Ans=\"maybe\"),\"continue\",\nIF(SD_Ex1_Ans=\"no\",\"D\",\"\"))))","v":""},"[menu]","Sediment may be present if particulate matter has settled at or below the ordinary high water mark, where surface water is present for a minimum of six consecutive weeks.  If surface water conditions are not present, sediment cannot exist.  "]
[null,null,null,null,null,"yes","Answer \"yes\", if sediment is in an on-site contaminated area."]
[null,null,null,null,null,"maybe","Answer \"maybe\", if sediment is suspected in an on-site contaminated area."]
[null,null,null,null,null,"no","Answer \"no\", if sediment is not on site, based on the MTCA definition."]
[null,"SD_Ex2","Is there an impact to sediment from an upland portion of the site that needs cleanup action?",{"$f":"IF(SD_Ex1_Score=\"D\",\"SKIP\",\nIF(SD_Ex2_Ans=\"[menu]\",\"\",\n\nIF(OR(SD_Ex2_Ans=\"yes\",SD_Ex2_Ans=\"maybe\"),\"continue\",\nIF(SD_Ex2_Ans=\"potential future\",\"C\",\nIF(SD_Ex2_Ans=\"no\",\"D\",\"\")))))","v":""},"[menu]","Upland sediment sources include various land use and cover types, such as forest, cropland, pasture, construction sites, or roads."]
[null,null,null,null,null,"yes","Answer \"yes\", if an site sediment impact is confirmed by observation or sample analysis."]
[null,null,null,null,null,"maybe","Answer \"maybe\", if any of the following is true."]
[null,null,null,null,null,"•","Site sediment contamination is suspected, but chemical and/or bioassay data are not available or are limited to confirm or relatively few samples have been collected for analysis."]
[null,null,null,null,null,"•","An oil-like sheen is visible on site sediment, or LNAPL or DNAPL is identified, in surface water or in nearby soil or groundwater."]
[null,null,null,null,null,"•","Contaminated surface water may pose a risk to site sediment, but data are not available to exclude a sediment concern."]
[null,null,null,null,null,"no","Answer \"no\", if sediment is not impacted by site contamination source."]
[null,null,null,null,null,"potential\nfuture","Answer \"potential future\", if a timely cleanup an upland portion of the site sediment is not currently underway or scheduled for imminent action."]
[null,"SD_Ex3","Does any sediment contaminant concentration exceed either a sediment cleanup objective (SCO) or cleanup screening level (CSL) for chemistry?",{"$f":"IF(OR(SD_Ex1_Score=\"D\",SD_Ex2_Score=\"D\"),\"SKIP\",\nIF(SD_Ex3_Ans=\"[menu]\",\"\",\n\nIF(SD_Ex3_Ans=\"yes\",\"A\",\nIF(SD_Ex3_Ans=\"maybe\",\"B\",\nIF(SD_Ex3_Ans=\"no\",\"D\",\"\")))))","v":""},"[menu]","Identify whether a site contaminant concentration exceeds a either a sediment cleanup objective (SCO) or cleanup screening level (CSL) for chemistry.  If unsure, answer \"maybe\"."]
[null,null,null,null,null,"► see SCUM Table 8-1 (page 8-8)"]
[null,null,null,null,null,"yes","Answer \"yes\", if a contaminant concentration exceeds an SCO or CSL, based on analytical results."]
[null,null,null,null,null,"maybe","Answer \"maybe\", if analytical data are not available, but a contaminant concentration likely exceeds a listed SCO or CSL. "]
[null,null,null,null,null,"no","Answer \"no\", if data are available, and no contaminant concentration exceeds an SCO or CSL."]
[null,"SD_Ex4","Does any biological test result exceed an SCO, CSL, or performance standard for marine or freshwater biological criteria?",{"$f":"IF(OR(SD_Ex1_Score=\"D\",SD_Ex2_Score=\"D\"),\"SKIP\",\nIF(SD_Ex4_Ans=\"[menu]\",\"\",\n\nIF(SD_Ex4_Ans=\"yes\",\"A\",\nIF(SD_Ex4_Ans=\"maybe\",\"B\",\nIF(SD_Ex4_Ans=\"no\",\"D\",\"\")))))","v":""},"[menu]","Adverse effects are defined when any biological test result for an SCO, CSL, or performance standard is exceeded for marine or freshwater chemistry.  If unsure, answer \"maybe\"."]
[null,null,null,null,null,"► see SCUM Table 8-2 (page 8-11)"]
[null,null,null,null,null,"► see SCUM Table 8-4 (page 8-14)"]
[null,null,null,null,null,"yes","Answer \"yes\", if data are available, and at least one biological test result exceeds an SCO, CSL, or performance standard in either SCUM Table 8-2 or 8-4."]
[null,null,null,null,null,"maybe","Answer \"maybe\", if no data are available, but at least one biological test result may exceed any biological criterion in SCUM Table 8-2 or 8-4."]
[null,null,null,null,null,"no","Answer \"no, if data are available, and no biological test result exceeds an SCO, CSL, or performance standard in either SCUM Table 8-2 or 8-4."]
[null,"SD_Ex5","Is there a current or potential future impact to sediment from a known upland source - either historically or currently?",{"$f":"IF(OR(SD_Ex1_Score=\"D\",SD_Ex2_Score=\"D\"),\"SKIP\",\nIF(SD_Ex5_Ans=\"[menu]\",\"\",\n\nIF(OR(SD_Ex5_Ans=\"yes\",SD_Ex5_Ans=\"maybe\"),\"B\",\nIF(SD_Ex5_Ans=\"potential future\",\"C\",\nIF(SD_Ex5_Ans=\"no\",\"D\",\"\")))))","v":""},"[menu]","Identify information about historical and remaining sources and transport pathways to sediment from upland sources and releases (e.g., groundwater, surface water, permitted and unpermitted discharges, spills, bank erosion, etc.).  Upland remedial investigation data can be used to determine if the transport pathways are complete or controlled. If unsure, answer \"maybe\"."]
[null,null,null,null,null,"yes","Answer \"yes\", if current or historical impacts from an upland source are known."]
[null,null,null,null,null,"maybe","Answer \"maybe\", if any one of the following is true."]
[null,null,null,null,null,"•","Groundwater is known or suspected to be contaminated."]
[null,null,null,null,null,"•","Bioassay data are not available or few representative samples have been collected for analysis."]
[null,null,null,null,null,"•","An oil-like is observed on site surface water, or in soil or groundwater near the surface water."]
[null,null,null,null,null,"•","An upland site has or had a storm water or wastewater outfall discharging to site surface water."]
[null,null,null,null,null,"•","An upland site has or had overwater activities (e.g., loading dock) that could impact site sediment."]
[null,null,null,null,null,"•","Wood waste is or has been observed on or in site sediment (beach, intertidal, or subtidal areas)."]
[null,null,null,null,null,"•","Site surface water is contaminated."]
[null,null,null,null,null,"•","Contamination is neither confirmed nor suspected, but site sediment potentially could be impacted in the future from a known upland source. "]
[null,null,null,null,null,"no","Answer \"no\", if no upland source has impacted, or has the potential to impact, site sediment."]
[null,null,null,"Exposure score ►",{"$f":"IF(OR(SD_Ex1_Score=\"\",SD_Ex2_Score=\"\",SD_Ex3_Score=\"\",SD_Ex4_Score=\"\",SD_Ex5_Score=\"\"),\"ExGo \",\nIF(OR(SD_Ex1_Score=\"D\",SD_Ex2_Score=\"D\"),\"D\",\n\nIF(OR(SD_Ex3_Score=\"A\",SD_Ex4_Score=\"A\"),\"A\",\nIF(OR(SD_Ex3_Score=\"B\",SD_Ex4_Score=\"B\"),\"B\",\n\nIF(AND(SD_Ex2_Score=\"C\",SD_Ex3_Score=\"D\",SD_Ex4_Score=\"D\"),\"C\",\n\nIF(AND(SD_Ex3_Score=\"D\",SD_Ex4_Score=\"D\",SD_Ex5_Score=\"B\"),\"B\",\nIF(AND(SD_Ex3_Score=\"D\",SD_Ex4_Score=\"D\",SD_Ex5_Score=\"C\"),\"C\",\nIF(AND(SD_Ex3_Score=\"D\",SD_Ex4_Score=\"D\",SD_Ex5_Score=\"D\"),\"D\",\nIF(SD_Ex5_Score=\"B\",\"B\",\nIF(SD_Ex5_Score=\"C\",\"C\",\"\"))))))))))","v":"ExGo "}]
[]
[2,"Answer severity questions",null,"Q-score","answer",null,"Hints"]
[null,"SD_Sv1","Does any portion of the site area overlay a 303(d)-listed waterbody in Category 2, 3, 4a, 4b, or 5?",{"$f":"IF(SD_ExScore=\"D\",\"SKIP\",\nIF(SD_Sv1_Ans=\"[menu]\",\"\",\n\nIF(SD_Sv1_Ans=\"yes\",5,\nIF(SD_Sv1_Ans=\"maybe\",3,\nIF(SD_Sv1_Ans=\"no\",0,\"\")))))","v":""},"[menu]","Ecology conducts water quality assessments in Washington streams, lakes, and marine waters.  Follow the SHARP Tool Manual's instructions for using Ecology's Water Quality Atlas Map to find sediment data to answer this question."]
[null,null,null,null,null,"► Ecology's Water Quality Atlas Map"]
[null,null,null,null,null,"See the SHARP Tool instructions on how to collect data from the Water Quality Atlas Map."]
[null,null,null,null,null,"yes","Answer \"yes\", if the site is in a 303(d)-listed water body."]
[null,null,null,null,null,"maybe","Answer \"maybe\", if the site is adjacent to a 303(d)-listed water body, or its estimated boundary intercepts a 303(d)-listed water body."]
[null,null,null,null,null,"no","Answer \"no\", if the site is not in or adjacent to a 303(d)-listed water body."]
[null,"SD_Sv2","Are any persistent bioaccumulative toxins (PBTs) listed in WAC 173-333-310(2) in site sediment?",{"$f":"IF(SD_ExScore=\"D\",\"SKIP\",\nIF(SD_Sv2_Ans=\"[menu]\",\"\",\n\nIF(OR(SD_Sv2_Ans=\"yes\",SD_Sv2_Ans=\"maybe\"),\"continue\",\nIF(SD_Sv2_Ans=\"no\",0,\"\"))))","v":""},"[menu]","See if a site contaminant is a listed PBT in the WAC 173-333-310(2) table."]
[null,null,null,null,null,"▶ WAC 173-333-310(2).  PBT list (table)"]
[null,null,null,null,null,"yes","Answer \"yes\", if at least one site contaminant is a listed PBT in Washington."]
[null,null,null,null,null,"maybe","Answer \"maybe\", if data are not available, but a PBT source is known but not confirmed in upland soil or groundwater."]
[null,null,null,null,null,"no","Answer \"no\", if sufficient data have been collected to indicate no PBT chemical is likely in sediment."]
[null,"SD_Sv3","Is any PBT concentration greater than any listed in SCUM Table 10-1 or Table 11-1?",{"$f":"IF(SD_ExScore=\"D\",\"SKIP\",\nIF(SD_Sv3_Ans=\"[menu]\",\"\",\n\nIF(SD_Sv3_Ans=\"yes\",10,\nIF(SD_Sv3_Ans=\"maybe\",6,\nIF(SD_Sv3_Ans=\"no\",0,\"\")))))","v":""},"[menu]","Decide if any of the PBT criteria exceed those in either of the following two Sediment Cleanup User’s Manual (SCUM) tables.  If there is insufficient data to answer \"yes\" or \"no\", then answer \"maybe\"."]
[null,null,null,null,null,"► see SCUM Table 10-1 (page 10-21)"]
[null,null,null,null,null,"► See SCUM Table 11-1 (page 11-4)"]
[null,null,null,null,null,"yes","Answer \"yes\", if at least one PBT chemical concentration exceeds any of the criteria listed in either table, based on sufficient data quality and/or quantity."]
[null,null,null,null,null,"maybe","Answer \"maybe\", if at least one PBT chemical concentration likely exceeds any of the criteria listed in either table, based on insufficient data quality and/or quantity."]
[null,null,null,null,null,"no","Answer \"no\", if sufficient data have been collected to indicate no PBT chemical concentration is likely to exceed the criteria in either table."]
[null,"SD_Sv4","Does or has the site historically supported shellfish?",{"$f":"IF(SD_ExScore=\"D\",\"SKIP\",\nIF(SD_Sv4_Ans=\"[menu]\",\"\",\n\nIF(OR(SD_Sv4_Ans=\"yes\",SD_Sv4_Ans=\"maybe\"),5,\nIF(SD_Sv4_Ans=\"no\",0,\"\"))))","v":""},"[menu]","Any river or Puget Sound area site is considered a fishing source.   For more information on mapped shellfish habitat locations, see the following resources."]
[null,null,null,null,null,"► DFW Public clam, mussel, and oyster beaches"]
[null,null,null,null,null,"► DFW Commercial wild stock geoduck clam fishery"]
[null,null,null,null,null,"► DOH Commercial Shellfish Map Viewer"]
[null,null,null,null,null,"► DOH Shellfish Safety Information"]
[null,null,null,null,null,"yes","Answer \"yes\", if any of the following is true."]
[null,null,null,null,null,"•","The site is located at any shoreline of the Puget Sound or adjacent to any river in the state."]
[null,null,null,null,null,"•","Shellfish are observed at the site."]
[null,null,null,null,null,"•","The site supports a freshwater habitat, and therefore, could support a crustacean population."]
[null,null,null,null,null,"maybe","Answer \"maybe\", if shellfish may have inhabited the site based on historical knowledge (e.g., tribal oral history), or may be supported after restoration has been completed."]
[null,null,null,null,null,"no","Answer \"no\", if either of the following is true:"]
[null,null,null,null,null,"•","No shellfish are present."]
[null,null,null,null,null,"•","Shellfish are not observed at the site."]
[null,"SD_Sv5","Is the site within a fishing resource area?",{"$f":"IF(SD_ExScore=\"D\",\"SKIP\",\nIF(SD_Sv5_Ans=\"[menu]\",\"\",\n\nIF(SD_Sv5_Ans=\"yes\",5,\nIF(SD_Sv5_Ans=\"maybe\",3,\nIF(SD_Sv5_Ans=\"no\",0,\"\")))))","v":""},"[menu]","Sensitive adults and children are those who harvest or eat fish at a relatively elevated rate.  Also, assume all Puget Sound, Columbia River, and Spokane River fishing resources are within a Usual and Accustomed fishing area.  For more information, see the following resource."]
[null,null,null,null,null,"► Ecology's Fish Consumption Rates, Technical Support Document, A Review of Data and Information about Fish Consumption in Washington"]
[null,null,null,null,null,"yes","Answer \"yes\", if on-site fishing resources are available and known to be used by sensitive adults and children."]
[null,null,null,null,null,"maybe","Answer \"maybe\", if on-site fishing resources are available and might be to be used by sensitive adults and children as a fishing resource."]
[null,null,null,null,null,"no","Answer \"no\", if the site is not in a fishing resource area."]
[null,"SD_Sv6","Is the site in an area that supports a sensitive or critical habitat?",{"$f":"IF(SD_ExScore=\"D\",\"SKIP\",\nIF(SD_Sv6_Ans=\"[menu]\",\"\",\n\nIF(SD_Sv6_Ans=\"yes\",5,\nIF(SD_Sv6_Ans=\"maybe\",3,\nIF(SD_Sv6_Ans=\"no\",0,\"\")))))","v":""},"[menu]","On-site habitat indicators might include eelgrass, shellfish, herring, forage fish, salmonids, spawning habitat, shorebirds, marine mammals, or endangered or threatened species.  Access information on these habitat indicators at the following online resources."]
[null,null,null,null,null,"Critical habitat:"]
[null,null,null,null,null,"► NOAA National NMFS ESA Critical Habitat Mapper"]
[null,null,null,null,null,"Seagrass:"]
[null,null,null,null,null,"►DNR Puget Sound Eelgrass Monitoring Data Viewer"]
[null,null,null,null,null,"►DNR Nearshore Habitat Biotic Community Monitoring"]
[null,null,null,null,null,"►DNR Nearshore Habitat Inventory"]
[null,null,null,null,null,"Shellfish:"]
[null,null,null,null,null,"► DFW Public clam, mussel, and oyster beaches"]
[null,null,null,null,null,"► DFW Commercial wild stock geoduck clam fishery"]
[null,null,null,null,null,"► DFW State Listed Species"]
[null,null,null,null,null,"► DOH Commercial Shellfish Map Viewer"]
[null,null,null,null,null,"► DOH Shellfish Safety Information"]
[null,null,null,null,null,"Forage fish:"]
[null,null,null,null,null,"►DFW Summary of Coastal Intertidal Forage Fish Spawning Surveys"]
[null,null,null,null,null,"yes","Answer \"yes\", if data are available, and at least one sensitive or  critical habitat indicator is on site."]
[null,null,null,null,null,"maybe","Answer \"maybe\", if data are not available, but at least one sensitive or  critical habitat indicator might bon site."]
[null,null,null,null,null,"no","Answer \"no\", if data are available, but no sensitive or  critical habitat indicator is on site."]
[null,null,null,"Severity score ►",{"$f":"IF(SD_ExScore=\"D\",\"4\",\nIF(OR(SD_Sv1_Score=\"\",SD_Sv2_Score=\"\",SD_Sv3_Score=\"\",SD_Sv4_Score=\"\",SD_Sv5_Score=\"\",SD_Sv6_Score=\"\"),\"SvGo\",\n\nIF(SD_SvQSum>=SD_SvThresh,1,\nIF(SD_SvQSum>=SD_SvThresh*2/3,2,\nIF(SD_SvQSum>=SD_SvThresh/3,3,4)))))","v":"SvGo"}]
[]
[3,"Select confidence level",null,null,"[menu]",{"$f":"CONCATENATE(SD_Conf,\" confidence\")","v":"[menu] confidence"}]
[]
[4,"Enter comments"]
[]
[]
[]
[]
[]
[]
[]
[]
[]
[]
[]
[]
[]
[]
[]
[]
[null,"Severity score inputs"]
[null,30,"= SvMaxPoints  |  maximum sum of severity Q-scores"]
[null,{"$f":"SUM(SD_Sv1_Score,SD_Sv2_Score,SD_Sv3_Score,SD_Sv4_Score,SD_Sv5_Score,SD_Sv6_Score)","v":0},"= SvQSum  |  sum of severity Q-scores"]
[null,20,"= SvThresh  |  Threshold"]
[null,{"$f":"SD_SvQSum/SD_SvMaxPoints","v":0},"= SvQSumMaxRatio  |  SvQSum/SvMaxPoints"]

{"sheet":"IA","index":6,"n_rows":73,"n_cols":7,"rows_kept":73,"cut":false,"hidden":false,"merged":[[52,1,66,6],[26,5,26,6],[22,5,22,6],[16,5,16,6],[33,5,33,6],[34,5,34,6],[38,5,38,6],[37,5,37,6],[41,5,41,6],[3,5,3,6],[9,5,9,6],[8,5,8,6],[7,5,7,6],[6,5,6,6],[5,5,5,6],[4,5,4,6]]}
[null,{"$f":"CONCATENATE(\"Indoor Air = \",IA_ExScore,IA_SvScore)","v":"Indoor Air = ExGo SvGo"}]
[]
[1,"Answer exposure questions",null,"Q-score","answer",null,"Hints"]
[null,"IA_Ex1","Is there a volatile vapor release or impact to indoor air that needs cleanup action, where indoor sources have been ruled out?",{"$f":"IF(IA_Ex1_Ans=\"[menu]\",\"\",\n\nIF(OR(IA_Ex1_Ans=\"yes\",IA_Ex1_Ans=\"maybe\"),\"continue\",\nIF(IA_Ex1_Ans=\"no\",\"D\",\"\")))","v":""},"[menu]","Screening levels may be cleanup levels, if established for the site, or conservative values used during an investigation (i.e., Method B values protective of unrestricted land use).  "]
[null,null,null,null,null,"CLARC offers tables of screening levels for individual volatile chemicals listed in MTCA Methods B and C and for commercial workers.  The volatile chemical lists are the same in the following CLARC, but screening levels may differ.  "]
[null,null,null,null,null,"► CLARC Vapor Intrusion Method B Table"]
[null,null,null,null,null,"► CLARC Vapor Intrusion Method C Table"]
[null,null,null,null,null,"► CLARC Vapor Intrusion Commercial Worker Table"]
[null,null,null,null,null,"Also see the following guidance for additional information."]
[null,null,null,null,null,"► Guidance for Evaluating Soil Vapor Intrusion in Washington State, Investigation and Remedial Action"]
[null,null,null,null,null,"yes","Answer \"yes\", if analytical data are available, and at least one volatile vapor level exceeds a screening level for indoor air."]
[null,null,null,null,null,"maybe","Answer \"maybe\", if either of the following is true."]
[null,null,null,null,null,"•","Analytical data are available, and at least one volatile vapor level exceeds screening levels, but ambient air or products in the building cannot be excluded as the source."]
[null,null,null,null,null,"•","A potential exists for vapor intrusion to impact the existing building or a future building."]
[null,null,null,null,null,"•","Analytical data are not available, but an unnatural odor is noted by occupants."]
[null,null,null,null,null,"no","Answer \"no\", if analytical data are available, and no volatile vapor level exceeds a screening level for indoor air."]
[null,"IA_Ex2","Are volatile petroleum vapor levels above screening levels in soil, groundwater, or soil vapor within 30 lateral feet or 15 vertical feet of any existing building?",{"$f":"IF(OR(IA_Ex1_Score=\"D\"),\"SKIP\",\nIF(IA_Ex2_Ans=\"[menu]\",\"\",\n\nIF(OR(IA_Ex2_Ans=\"yes\",IA_Ex2_Ans=\"maybe\"),\"B\",\nIF(IA_Ex2_Ans=\"no\",\"D\",\"\"))))","v":""},"[menu]","Consider only the depth range from ground surface to the water table.  If site-specific screening distances have been established, answer using those instead of 30 and 15 feet.  Screening levels for subsurface media that are protective of indoor air are listed in CLARC."]
[null,null,null,null,null,"yes","Answer \"yes\", if both of the following are true."]
[null,null,null,null,null,"•","Site-specific screening distances are known or fairly well estimated."]
[null,null,null,null,null,"•","At least one volatile petroleum contaminant is identified within either screening distance."]
[null,null,null,null,null,"maybe","Answer \"maybe\", if a petroleum vapor source may be in soil or groundwater, but more information is needed to confirm contamination within either screening distance."]
[null,null,null,null,null,"no","Answer \"no\", if sampling and analysis results confirm no volatile petroleum chemical in soil or groundwater within either screening distance."]
[null,"IA_Ex3","Are volatile non-petroleum vapor levels above screening levels in soil or groundwater within 100 lateral feet or any vertical depth of any exisiting building?",{"$f":"IF(IA_Ex1_Score=\"D\",\"SKIP\",\nIF(OR(IA_Ex2_Ans=\"yes\",IA_Ex2_Ans=\"maybe\"),\"continue\",\n\nIF(IA_Ex3_Ans=\"[menu]\",\"\",\n\nIF(OR(IA_Ex3_Ans=\"yes\",IA_Ex3_Ans=\"maybe\"),\"B\",\nIF(IA_Ex3_Ans=\"no\",\"D\",\"\")))))","v":""},"[menu]","Consider only the depth from ground surface to the water  table.  If site-specific screening distances have been established, answer using those instead of 100 lateral feet."]
[null,null,null,null,null,"yes","Answer \"yes\", if at least one volatile non-petroleum chemical is identified within 100 lateral feet of a building, based on a known or fairly well estimated distance."]
[null,null,null,null,null,"maybe","Answer \"maybe\", if a non-petroleum vapor source may be within soil or groundwater, but more information is needed to confirm contamination within 100 lateral feet of a building."]
[null,null,null,null,null,"no","Answer \"no\", if sampling and analysis results confirm no volatile non-petroleum chemical in soil or groundwater within either the screening distance."]
[null,"IA_Ex4","Is vapor intrusion being limited by mitigating measures?",{"$f":"IF(IA_Ex1_Score=\"D\",\"SKIP\",\nIF(IA_Ex4_Ans=\"[menu]\",\"\",\n\nIF(IA_Ex4_Ans=\"yes\",\"C\",\nIF(IA_Ex4_Ans=\"maybe\",\"B\",\nIF(IA_Ex4_Ans=\"no\",\"A\",\"\")))))","v":""},"[menu]","Example mitigation measures migth include HVAC system adjustments, sub-slab depressurization systems, and vapor barriers."]
[null,null,null,null,null,"yes","Answer \"yes\", if a mitigation measure or system is in place and operating, such that if compromised or turned off, the exposure could be reactivated."]
[null,null,null,null,null,"maybe","Answer \"maybe\", if more information is needed to confirm a mitigation measure or system is in place and operating as intended."]
[null,null,null,null,null,"no","Answer \"no\", if no mitigation measure or system is in operation."]
[null,null,null,"Exposure score ►",{"$f":"IF(IA_Ex1_Score=\"D\",\"D\",\nIF(OR(IA_Ex1_Score=\"\",IA_Ex2_Score=\"\",IA_Ex3_Score=\"\",IA_Ex4_Score=\"\"),\"ExGo \",\n\nIF(AND(IA_Ex2_Score=\"B\",IA_Ex4_Score=\"C\"),\"C\",\nIF(AND(IA_Ex3_Score=\"B\",IA_Ex4_Score=\"C\"),\"C\",\nIF(AND(IA_Ex2_Score=\"B\",IA_Ex4_Score=\"B\"),\"B\",\nIF(AND(IA_Ex3_Score=\"B\",IA_Ex4_Score=\"A\"),\"A\",\nIF(AND(IA_Ex3_Score=\"B\",IA_Ex4_Score=\"A\"),\"A\",\n\nIF(AND(IA_Ex3_Score=\"D\",IA_Ex3_Score=\"D\"),\"D\",\"\"))))))))","v":"ExGo "}]
[]
[2,"Answer severity questions",null,"Q-score","answer",null,"Hints"]
[null,"IA_Sv1","Is any volatile extremely toxic chemical in soil vapor or indoor air?",{"$f":"IF(IA_ExScore=\"D\",\"SKIP\",\nIF(IA_Sv1_Ans=\"[menu]\",\"\",\n\nIF(IA_Sv1_Ans=\"yes\",10,\nIF(IA_Sv1_Ans=\"maybe\",6,\nIF(IA_Sv1_Ans=\"no\",0,\"\")))))","v":""},"[menu]","Compare site confirmed or suspected chemicals with those listed as extremely toxic in the \"SHARP User Toxicity Scoring Reference\", under the heading, \"Soil, Groundwater, Air, SHARP Toxicity Category\"."]
[null,null,null,null,null,"► Go to ChemTox Tab"]
[null,null,null,null,null,"yes or\n maybe","Answer \"yes\" or \"maybe\", if any site volatile chemical is listed as extremely toxic."]
[null,null,null,null,null,"no","Answer \"no\", if no site volatile chemical is listed as extremely toxic."]
[null,"IA_Sv2","Is any volatile very toxic chemical  in soil vapor or indoor air?",{"$f":"IF(IA_ExScore=\"D\",\"SKIP\",\nIF(OR(IA_Sv1_Score=15,IA_Sv1_Score=10,IA_Sv1_Score=6),\"SKIP\",\nIF(IA_Sv2_Ans=\"[menu]\",\"\",\n\nIF(IA_Sv2_Ans=\"yes\",5,\nIF(IA_Sv2_Ans=\"maybe\",3,\nIF(IA_Sv2_Ans=\"no\",0,\"\"))))))","v":""},"[menu]","Compare site confirmed or suspected chemicals with those listed as very toxic in the \"SHARP User Toxicity Scoring Reference\", under the heading, \"Soil, Groundwater, Air, SHARP Toxicity Category\"."]
[null,null,null,null,null,"► Go to ChemTox Tab"]
[null,null,null,null,null,"yes or\n maybe","Answer \"yes\" or \"maybe\", if any site volatile chemical is listed as very toxic."]
[null,null,null,null,null,"no","Answer \"no\", if no site volatile chemical is listed as very toxic."]
[null,"IA_Sv3","Could children or women of child-bearing age be present in a potentially impacted building for extended periods of time?",{"$f":"IF(IA_ExScore=\"D\",\"SKIP\",\nIF(IA_Sv3_Ans=\"[menu]\",\"\",\n\nIF(IA_Sv3_Ans=\"yes\",5,\nIF(OR(IA_Sv3_Ans=\"maybe\",IA_Sv3_Ans=\"future potential\"),3,\nIF(IA_Sv3_Ans=\"no\",0,\"\")))))","v":""},"[menu]","Children and women of child-bearing age who may reside, work, or be a long-term guest or regular visitor (e.g., nanny) are more sensitive to indoor air contamination than other people.  An exposure could recur, if an on-site, operating mitigation system is later turned off.  This is especially important for trichloroethene (TCE) vapor."]
[null,null,null,null,null,"yes","Answer \"yes\", if children and women of child-bearing age could occupy a potentially affected impacted building for extended periods of time."]
[null,null,null,null,null,"maybe","Answer \"maybe\", if either of the following is true."]
[null,null,null,null,null,"•","Building occupancy populations or uses are unknown."]
[null,null,null,null,null,"•","A vapor plume is expanding or suspected to be expanding in the direction of a building occupied or used by children and women of child-bearing age."]
[null,null,null,null,null,"no","Answer \"no\", if site buildings cannot be occupied because of reasons such as inhabitability, condemnation, or blocked entry."]
[null,null,null,"Severity score ►",{"$f":"IF(IA_ExScore=\"D\",\"4\",\nIF(OR(IA_Sv1_Score=\"\",IA_Sv2_Score=\"\",IA_Sv3_Score=\"\"),\"SvGo\",\n\nIF(IA_SvQSum>=IA_SvThresh,1,\nIF(IA_SvQSum>=IA_SvThresh*2/3,2,\nIF(IA_SvQSum>=IA_SvThresh/3,3,4)))))","v":"SvGo"}]
[]
[3,"Select confidence level",null,null,"[menu]",{"$f":"CONCATENATE(IA_Conf,\" confidence\")","v":"[menu] confidence"}]
[]
[4,"Enter comments"]
[]
[]
[]
[]
[]
[]
[]
[]
[]
[]
[]
[]
[]
[]
[]
[]
[null,"Severity score inputs"]
[null,15,"= SvMaxPoints  |  maximum sum of severity Q-scores"]
[null,{"$f":"SUM(IA_Sv1_Score,IA_Sv2_Score,IA_Sv3_Score)","v":0},"= SvQSum  |  sum of severity Q-scores"]
[null,10,"= SvThresh  |  Threshold"]
[null,{"$f":"IA_SvQSum/IA_SvMaxPoints","v":0},"= SvQSumMaxRatio  |  SvQSum/SvMaxPoints"]

{"sheet":"AF","index":7,"n_rows":28,"n_cols":8,"rows_kept":28,"cut":false,"hidden":false,"merged":[[1,1,1,5],[28,1,42,5],[4,4,4,5],[5,4,5,5],[9,4,9,5],[13,4,13,5],[14,4,14,5],[20,4,20,5],[21,4,21,5],[24,4,24,5],[25,4,25,5]]}
[null,"Additional Factors",null,null,null,null,null,"▼ hide column ▼"]
[null,{"$f":"AF_1factor&CHAR(10) &AF_2factor&CHAR(10) &AF_3factor","v":"\n\n"},null,null,null,null,null,"to populate \nSHARP reports only"]
[]
[1,"Answer additional factor questions",null," select",null,"Hints",null,"AF_#factor"]
[null,"AF_1","Multi-chemical types:  Does the site have a screening or cleanup standard exceedance of multiple chemical types where cumulative or synergistic effects are a concern?","[menu]","Potential cumulative or synergistic effects of multiple types of chemicals can be significant factors during cleanup planning.  These factors may not be directly related to specific exposure media or routes and can include various contamination groups such as in the following list of common chemical types.",null,null,{"$f":"IF(AF_1Ans=\"[menu]\", \"\",\nIF(OR(AF_1Ans=\"yes\", AF_1Ans=\"maybe\"), \"• Multiple chemical types \",\nIF(AF_1Ans=\"no\",\" \", \"\")))","v":""}]
[null,null,null,null,"carcinogenic polycyclic aromatic hydrocarbons (cPAHs), chlorinated pesticides, chlorinated solvents, dioxins and furans, heavy metals, herbicides, neonicotinoids, organophosphorus pesticides, petroleum hydrocarbons, per- and poly-fluoroalkyl substances (PFAS), and polychlorinated Biphenyls (PCBs)."]
[null,null,null,null,"yes","Answer \"yes\", if multiple chemical type screening or cleanup standards are exceeded."]
[null,null,null,null,"maybe","Answer \"maybe\", if  multiple chemical type screening or cleanup standards may be exceeded, but data are needed to confirm."]
[null,null,null,null,"no","Answer \"no\", if no multiple chemical type screening or cleanup standards are exceeded."]
[null,"AF_2","Risks to off-site people:  Are people and other living things off-site at risk of exposure?","[menu]","People and other living things can be at risk off site from contamination that has moved, or been moved, from the site to other areas, such as thorugh \"downwinder\" exposures.  Examples might include effluent or discharges from storm sewer systems, mining operations, manufacturing, or the Hanford Site.    Consider whether exposures might have occurred or are occuring from sources.",null,null,{"$f":"IF(AF_2Ans=\"[menu]\", \"\",\nIF(OR(AF_2Ans=\"yes\", AF_2Ans=\"maybe\"), \"• Risks to off-site people \",\nIF(AF_2Ans=\"no\",\" \", \"\")))","v":""}]
[null,null,null,null,"yes","Answer \"yes\", if people off site are at risk of exposure from site contamination."]
[null,null,null,null,"maybe","Answer \"maybe\", if an off-site exposure is not confirmed but is likely."]
[null,null,null,null,"no","Answer \"no\", if off-site exposures are unlikely."]
[null,"AF_3","Climate change impacts:  Do any climate changer factors present a vulnerability to the site?","[menu]","Consider high threat vulnerabilities the site may have to climate change impacts.",null,null,{"$f":"IF(AF_3Ans=\"[menu]\", \"\",\nIF(OR(AF_3Ans=\"yes\", AF_3Ans=\"maybe\"),\"• Climate change impacts\",\nIF(AF_3Ans=\"no\",\" \", \"\")))","v":""}]
[null,null,null,null,"Conditions that could pose the greatest threats to cleanup sites include sea level rise, flooding, wildfires, and landslides.  Climate change vulnerabilities depend on the site location, contaminated media, and the type of potential remedy.  Potentially vulnerable sites might be those located:"]
[null,null,null,null,"•","along or near the coastline and or Puget Sound prone to globally rising sea levels, especially during or just after heavy storm events"]
[null,null,null,null,"•","in a flood plain or along a riverfront prone to flooding, most notably during or just after heavy storm events"]
[null,null,null,null,"•","in grasslands or near forests at risk of seasonal wildfire"]
[null,null,null,null,"•","near a bluff or steep erosion-prone area subject to landslides, chiefly during or immediately after heavy storm events."]
[null,null,null,null,null,"For more information, access the following resource."]
[null,null,null,null,"► Sustainable Remediation: Climate Change Resiliency and Green Remediation-A Guide for Cleanup Project Managers"]
[null,null,null,null,"Climate change vulnerability layers can also be visualized in Ecology's TCP Maps database (internal)."]
[null,null,null,null,"yes or\n maybe","Answer \"yes\" or \"maybe\", if the site is or might be particularly vulnerable to climate change impacts."]
[null,null,null,null,"no","Answer \"no\", if the site is not likely to be particularly impacted by climate change factors."]
[null,"AF_4","DOH Environmental Health Disparities rank","[menu]","Use the Washington Tracking Network to identify the \"Environmental Health Disparities\" ranking for the site.  Enter the ranking score here."]
[null,null,null,null,"► DOH Washington Tracking Network Information by Location Tool"]
[]
[2,"Enter comments"]

{"sheet":"SHARP1","index":8,"n_rows":135,"n_cols":11,"rows_kept":135,"cut":false,"hidden":false,"merged":[[118,3,129,10],[134,3,145,10],[24,3,49,10],[23,3,23,5],[54,3,65,10],[70,3,81,10],[86,3,97,10],[102,3,113,10]]}
[]
[]
[null,null,null,{"$f":"_xlfn.CONCAT(Site_Name, \" Site\")","v":" Site"},null,null,null,null,null,null,{"$f":"IF(Info!C9=\"x\", \"Initial Ranking Report\",\nIF(Info!C10=\"x\", \"Site Re-Ranking Report\", \"\"))","v":""}]
[]
[null,null,null,"Region/Responsible Unit:",null,{"$f":"Responsible_Unit","v":0},null,null,null,"Rank date:",{"$f":"TEXT(RankDate,\"dd mmm yyyy\")","v":"00 Jan 1900"}]
[null,null,null,null,null,null,null,null,null,"Ranker:",{"$f":"Ranker_Name","v":0}]
[]
[null,null,null,{"$f":"Address","v":0},null,null,null,null,"CSIDs",null,{"$f":"CSID","v":0}]
[null,null,null,{"$f":"_xlfn.CONCAT(City,\"  \",Zip)","v":"  "},null,null,null,null,"FSIDs",null,{"$f":"FSID","v":0}]
[null,null,null,{"$f":"_xlfn.CONCAT(Site_County,\" County\")","v":"[select one] County"},null,null,null,null,"VCP #",null,{"$f":"VCP","v":0}]
[null,null,null,{"$f":"_xlfn.CONCAT( \"Parcel(s): \", Site_ParcelNo)","v":"Parcel(s): "},null,null,null,null,"LUST ID",null,{"$f":"LUST","v":0}]
[null,null,null,{"$f":"_xlfn.CONCAT(\"Land use: \",Landuse)","v":"Land use: [select one - delete to start over]"},null,null,null,null,"UST ID",null,{"$f":"UST","v":0}]
[]
[]
[]
[null,null,null,"Media Scores",null,null,null,"Socioeconomic Indicators",">p80",null,"Additional Factors"]
[null,null,null,"Medium","Scores","Confidence",null,{"$f":"SI_1","v":"People of Color"},{"$f":"SI_P80","v":0},null,{"$f":"AF_1factor","v":""}]
[null,null,null,"Indoor Air",{"$f":"_xlfn.CONCAT(IA_ExScore,IA_SvScore)","v":"ExGo SvGo"},{"$f":"IF(IA_Conf=\"[menu]\",\"finish\",IA_Conf)","v":"finish"},null,{"$f":"SI_2","v":"Low Income"},{"$f":"SI2_P80","v":0},null,{"$f":"AF_2factor","v":""}]
[null,null,null,"Groundwater",{"$f":"_xlfn.CONCAT(GW_ExScore,GW_SvScore)","v":"ExGo SvGo"},{"$f":"IF(GW_Conf=\"[menu]\",\"finish\",GW_Conf)","v":"finish"},null,{"$f":"SI_3","v":"Less Than High School"},{"$f":"SI3_P80","v":0},null,{"$f":"AF_3factor","v":""}]
[null,null,null,"Surface Water",{"$f":"_xlfn.CONCAT(SW_ExScore,SW_SvScore)","v":"ExGo SvGo"},{"$f":"IF(SW_Conf=\"[menu]\",\"finish\",SW_Conf)","v":"finish"},null,{"$f":"SI_4","v":"Limited English Speaking"},{"$f":"SI4_P80","v":0},null,"DOH Health"]
[null,null,null,"Sediment",{"$f":"_xlfn.CONCAT(SD_ExScore,SD_SvScore)","v":"ExGo SvGo"},{"$f":"IF(SD_Conf=\"[menu]\",\"finish\",SD_Conf)","v":"finish"},null,{"$f":"SI_5","v":"Under Age 5"},{"$f":"SI5_P80","v":0},null,"Disparities Rank"]
[null,null,null,"Soil",{"$f":"_xlfn.CONCAT(SL_ExScore,SL_SvScore)","v":"ExGo SvGo"},{"$f":"IF(SL_Conf=\"[menu]\",\"finish\",SL_Conf)","v":"finish"},null,{"$f":"SI_6","v":"Over Age 64"},{"$f":"SI6_P80","v":0},null,{"$f":"DOHRank","v":"[menu]"}]
[]
[null,null,null,"Site summary"]
[null,null,null,{"$f":"Site_Narrative","v":0}]
[]
[]
[]
[]
[]
[]
[]
[]
[]
[]
[]
[]
[]
[]
[]
[]
[]
[]
[]
[]
[]
[]
[]
[]
[]
[]
[]
[]
[null,null,null,"Soil Comments"]
[null,null,null,{"$f":"SL_Comments","v":0}]
[]
[]
[]
[]
[]
[]
[]
[]
[]
[]
[]
[]
[]
[]
[null,null,null,"Groundwater Comments"]
[null,null,null,{"$f":"GW_Comments","v":0}]
[]
[]
[]
[]
[]
[]
[]
[]
[]
[]
[]
[]
[]
[]
[null,null,null,"Surface Water Comments"]
[null,null,null,{"$f":"SW_Comments","v":0}]
[]
[]
[]
[]
[]
[]
[]
[]
[]
[]
[]
[]
[]
[]
[null,null,null,"Sediment Comments"]
[null,null,null,{"$f":"SD_Comments","v":0}]
[]
[]
[]
[]
[]
[]
[]
[]
[]
[]
[]
[]
[]
[]
[null,null,null,"Indoor Air Comments"]
[null,null,null,{"$f":"IA_Comments","v":0}]
[]
[]
[]
[]
[]
[]
[]
[]
[]
[]
[]
[]
[]
[]
[null,null,null,"Additional Factors Comments"]
[null,null,null,{"$f":"AF_Comments","v":0}]

{"sheet":"SHARP2","index":9,"n_rows":10,"n_cols":7,"rows_kept":10,"cut":false,"hidden":false,"merged":[]}
[]
[]
[null,null,{"$f":"Site_Name","v":0},{"$f":"_xlfn.CONCAT(Info!H9,\" \",(TEXT(RankDate,\"dd mmm yyyy\")))","v":"Ranked on 00 Jan 1900"},null,"Media Scoring"]
[null,null,{"$f":"SHARP1!D6","v":0},{"$f":"_xlfn.CONCAT(Info!H10,\" \",Ranker_Name)","v":"Ranking by "},null," Exposure","Severity"]
[null,null,{"$f":"_xlfn.CONCAT(Address,\", \",City, \", \", Site_County,\" County\",\"  \",Zip)","v":", , [select one] County  "},{"$f":"_xlfn.CONCAT(Info!D24, \" - \", FSID)","v":"CSIDs - "},null,"  A known"," 1 (high)"]
[null,null,{"$f":"_xlfn.CONCAT(Info!D23,\" - \", Responsible_Unit)","v":"responsible unit - "},{"$f":"_xlfn.CONCAT(Info!D25, \" - \", CSID)","v":"FSIDs - "},null,"  B possible"," 2"]
[null,null,{"$f":"_xlfn.CONCAT(Info!D19,\" - \", Landuse)","v":"land use - [select one - delete to start over]"},{"$f":"_xlfn.CONCAT(Info!D26, \" - \", Info!F26)","v":"VCP project nos. - "},null,"  C potential"," 3"]
[null,null,{"$f":"_xlfn.CONCAT(Info!D20,\" - \", Site_ParcelNo)","v":"parcel(s) - "},{"$f":"_xlfn.CONCAT(Info!D27, \" - \", Info!F27)","v":"LUST IDs - "},null,"  D unlikely"," 4 (low)"]
[null,null,{"$f":"SI_Title","v":"Socioeconomic Indicators"},{"$f":"_xlfn.CONCAT(Info!D28, \" - \", Info!F28)","v":"UST IDs - "}]
[null,null,{"$f":"_xlfn.CONCAT(\"additional factors | \",AF_1factor,AF_2factor,AF_3factor)","v":"additional factors | "}]

{"sheet":"ChemTox","index":10,"n_rows":652,"n_cols":6,"rows_kept":652,"cut":false,"hidden":false,"merged":[]}
[]
[null,"Chemical Toxicity Reference Table"]
[null,"Chemical Name","CAS #","Possible \nVapor Intrusion?\n(X=yes)","Soil, Groundwater, Air\nSHARP Toxicity Category","Surface Water\nSHARP Toxicity Category"]
[null,"acenaphthene","83-32-9",null,null,"extremely (only freshwater)"]
[null,"acephate","30560-19-1",null,"extremely","extremely (only freshwater)"]
[null,"acetaldehyde","75-07-0","X",null,"extremely (only freshwater)"]
[null,"acetochlor","34256-82-1"]
[null,"acetone","67-64-1"]
[null,"acetone cyanohydrin","75-86-5",null,"very"]
[null,"acetonitrile","75-05-8","X"]
[null,"acetophenone","98-86-2"]
[null,"acifluorfen, sodium","62476-59-9"]
[null,"acrolein","107-02-8","X","extremely"]
[null,"acrylamide","79-06-1",null,"very"]
[null,"acrylic acid","79-10-7",null,"very"]
[null,"acrylonitrile","107-13-1","X","very"]
[null,"alachlor","15972-60-8",null,null,"extremely"]
[null,"alar","1596-84-5"]
[null,"aldicarb","116-06-3",null,"very","extremely"]
[null,"aldicarb sulfone","1646-88-4",null,"very"]
[null,"aldrin","309-00-2",null,"extremely","extremely"]
[null,"ally","74223-64-6"]
[null,"allyl alcohol","107-18-6",null,"extremely"]
[null,"allyl chloride","107-05-1","X","very"]
[null,"aluminum","7429-90-5",null,"very"]
[null,"aluminum phosphide","20859-73-8",null,"extremely"]
[null,"amdro","67485-29-4",null,null,"extremely"]
[null,"ametryn","834-12-8"]
[null,"aminobiphenyl;4-","92-67-1",null,"extremely"]
[null,"aminophenol;m-","591-27-5"]
[null,"amitraz","33089-61-1",null,"very"]
[null,"ammonia","7664-41-7"]
[null,"ammonium perchlorate","7790-98-9",null,"very"]
[null,"ammonium sulfamate","7773-06-0"]
[null,"aniline","62-53-3",null,"very","extremely (only freshwater)"]
[null,"anthracene","120-12-7",null,null,"extremely"]
[null,"antimony","7440-36-0",null,"extremely"]
[null,"antimony pentoxide","1314-60-9",null,"very"]
[null,"antimony potassium tartrate","28300-74-5",null,"very"]
[null,"antimony tetroxide","1332-81-6",null,"extremely"]
[null,"antimony trioxide","1309-64-4",null,"extremely"]
[null,"apollo","74115-24-5",null,null,"extremely"]
[null,"aramite","140-57-8",null,null,"extremely"]
[null,"arsenic","7440-38-2",null,"extremely"]
[null,"arsine","7784-42-1",null,"extremely"]
[null,"asbestos","1332-21-4",null,"extremely"]
[null,"assure","76578-14-8"]
[null,"asulam","3337-71-1"]
[null,"atrazine","1912-24-9",null,null,"extremely"]
[null,"avermectin B1","65195-55-3",null,"extremely","extremely"]
[null,"azobenzene","103-33-3",null,"very"]
[null,"barium and compounds","7440-39-3",null,"very"]
[null,"baygon","114-26-1",null,"very"]
[null,"bayleton","43121-43-3"]
[null,"baythroid","68359-37-5"]
[null,"benefin","1861-40-1"]
[null,"benomyl","17804-35-2"]
[null,"bentazon","25057-89-0"]
[null,"benzaldehyde","100-52-7"]
[null,"benzene","71-43-2","X","very"]
[null,"benzenethiol","108-98-5",null,"very"]
[null,"benzidine","92-87-5",null,"extremely"]
[null,"benzo[e]pyrene","192-97-2",null,"extremely"]
[null,"benzo[a]anthracene","56-55-3",null,"use cPAH TEQ - see benzo(a)pyrene"]
[null,"benzo[a]pyrene (also use for cPAH TEQ)","50-32-8",null,"Extremely"]
[null,"benzo[b]fluoranthene","205-99-2",null,"use cPAH TEQ - see benzo(a)pyrene"]
[null,"benzo[k]fluoranthene","207-08-9",null,"use cPAH TEQ - see benzo(a)pyrene"]
[null,"benzoic acid","65-85-0"]
[null,"benzotrichloride","98-07-7",null,"extremely"]
[null,"benzyl alcohol","100-51-6"]
[null,"benzyl chloride","100-44-7","X","very"]
[null,"beryllium","7440-41-7",null,"extremely"]
[null,"beta-chloronaphthalene","91-58-7"]
[null,"bidrin","141-66-2",null,"extremely"]
[null,"biphenthrin","82657-04-3"]
[null,"biphenyl;1,1-","92-52-4",null,"very"]
[null,"bis(2-chloro-1-methyl-ethyl)ether","108-60-1"]
[null,"bis(2-chloroethoxy)methane","111-91-1",null,"very"]
[null,"bis(2-chloroethyl)ether","111-44-4",null,"very"]
[null,"bis(2-ethylhexyl) phthalate (DEHP)","117-81-7"]
[null,"bis(chloromethyl)ether","542-88-1",null,"extremely"]
[null,"bisphenol a","80-05-7"]
[null,"boron","7440-42-8"]
[null,"bromate","15541-45-4",null,"very"]
[null,"bromoacetic acid","79-08-3"]
[null,"bromobenzene","108-86-1","X"]
[null,"bromochloromethane","74-97-5"]
[null,"bromodichloromethane","75-27-4","X"]
[null,"bromoethene","593-60-2","X","very"]
[null,"bromoform","75-25-2","X"]
[null,"bromomethane","74-83-9","X","very"]
[null,"bromophos","2104-96-3"]
[null,"bromoxynil","1689-84-5"]
[null,"bromoxynil octanoate","1689-99-2"]
[null,"butadiene;1,3-","106-99-0","X","extremely"]
[null,"butanol;n-","71-36-3"]
[null,"butyl alcohol;tert-","75-65-0"]
[null,"butyl benzyl phthalate","85-68-7"]
[null,"butylate","2008-41-5"]
[null,"butylphthalyl butylglycolate","85-70-1"]
[null,"butyric acid;4-(2-methyl-4-chlorophenoxy)-","94-81-5"]
[null,"cacodylic acid","75-60-5"]
[null,"cadmium","7440-43-9",null,"extremely","extremely (only freshwater)"]
[null,"calcium cyanide","592-01-8",null,"very"]
[null,"caprolactam","105-60-2",null,"very"]
[null,"captafol","2425-06-01",null,"very"]
[null,"captan","133-06-2"]
[null,"carbaryl","63-25-2"]
[null,"carbofuran","1563-66-2"]
[null,"carbon disulfide","75-15-0","X"]
[null,"carbon tetrachloride","56-23-5","X","very"]
[null,"carbosulfan","55285-14-8"]
[null,"carboxin","5234-68-4"]
[null,"cerium oxide and cerium compounds","1306-38-3",null,"very"]
[null,"chloral hydrate","302-17-0"]
[null,"chloramben","133-90-4"]
[null,"chloranil","118-75-2"]
[null,"chlordane","12789-03-6",null,"very","extremely"]
[null,"chlordane (alpha)","5103-71-9",null,"very"]
[null,"chlordane (gamma)","5103-74-2",null,"very"]
[null,"chlordecone (kepone)","143-50-0",null,"extremely"]
[null,"chloride","16887-00-6"]
[null,"chlorimuron-ethyl","90982-32-4"]
[null,"chlorine","7782-50-5",null,"extremely"]
[null,"chlorine cyanide","506-77-4"]
[null,"chlorine dioxide","10049-04-4",null,"extremely"]
[null,"chlorite","7758-19-2"]
[null,"chloro-1,1-difluoroethane;1-","75-68-3"]
[null,"chloro-1,3-butadiene;2-","126-99-8","X"]
[null,"chloro-2-methylaniline hydrochloride;4-","3165-93-3"]
[null,"chloro-2-methylaniline;4-","95-69-2",null,"very"]
[null,"chloroacetic acid","79-11-8",null,"very"]
[null,"chloroacetophenone;2-","532-27-4",null,"extremely"]
[null,"chloroaniline;p-","106-47-8",null,"very"]
[null,"chlorobenzene","108-90-7","X"]
[null,"chlorobenzilate","510-15-6"]
[null,"chlorobenzoic acid;p-","74-11-3"]
[null,"chlorobenzotrifluoride;4-","98-56-6",null,"very"]
[null,"chlorobutane;1-","109-69-3"]
[null,"chlorocresol","59-50-7"]
[null,"chlorodifluoromethane","75-45-6","X"]
[null,"chloroform","67-66-3","X"]
[null,"chloromethane","74-87-3","X"]
[null,"chloromethyl methyl ether","107-30-2",null,"extremely"]
[null,"chloronitrobenzene;o-","88-73-3",null,"extremely"]
[null,"chloronitrobenzene;p-","100-00-5",null,"very"]
[null,"chlorophenol; 2-","95-57-8"]
[null,"chlorothalonil","1897-45-6"]
[null,"chlorotoluene;o-","95-49-8"]
[null,"chlorotoluene;p-","106-43-4"]
[null,"chlorpropham","101-21-3"]
[null,"chlorpyrifos","2921-88-2",null,"very","extremely"]
[null,"chlorpyrifos-methyl","5598-13-0"]
[null,"chlorsulfuron","64902-72-3"]
[null,"chlorthiophos","60238-56-4",null,"very"]
[null,"chromium (total)","7440-47-3"]
[null,"chromium (III)","16065-83-1"]
[null,"chromium (VI)","18540-29-9",null,"extremely"]
[null,"chrysene","218-01-9",null,"use cPAH TEQ - see benzo(a)pyrene"]
[null,"cobalt","7440-48-4",null,"extremely"]
[null,"coke oven emissions","E649830"]
[null,"copper","7440-50-8"]
[null,"copper cyanide","544-92-3"]
[null,"cresol;m-","108-39-4"]
[null,"cresol;o-","95-48-7"]
[null,"cresol;p-","106-44-5"]
[null,"cresols","1319-77-3"]
[null,"crotonaldehyde","123-73-9",null,"very"]
[null,"cumene","98-82-8","X"]
[null,"cyanazine","21725-46-2",null,"very"]
[null,"cyanide","57-12-5",null,"very"]
[null,"cyanogen","460-19-5",null,"very"]
[null,"cyanogen bromide","506-68-3"]
[null,"cyclohexane","110-82-7","X"]
[null,"cyclohexanone","108-94-1","X"]
[null,"cyclohexylamine","108-91-8"]
[null,"cyromazine","66215-27-8"]
[null,"dacthal","1861-32-1"]
[null,"dalapon, sodium salt","75-99-0"]
[null,"danitol","39515-41-8"]
[null,"DDD","72-54-8",null,"extremely"]
[null,"DDE","72-55-9",null,"extremely"]
[null,"DDT","50-29-3",null,"very","extremely"]
[null,"decabromodiphenyl ether (PBDE-209)","1163-19-5"]
[null,"demeton","8065-48-3",null,"extremely","extremely"]
[null,"di(2-ethylhexyl)adipate","103-23-1"]
[null,"diallate","2303-16-4"]
[null,"diazinon","333-41-5",null,"very","extremely"]
[null,"dibenz[a,h]anthracene","53-70-3",null,"use cPAH TEQ - see benzo(a)pyrene"]
[null,"dibenzofuran","132-64-9",null,"very"]
[null,"dibromo-3-chloropropane;1,2-","96-12-8","X","extremely"]
[null,"dibromoacetic acid","631-64-1"]
[null,"dibromobenzene;1,4-","106-37-6"]
[null,"dibromochloromethane","124-48-1"]
[null,"di-butyl phthalate","84-74-2"]
[null,"dicamba","1918-00-9"]
[null,"dichloramine","3400-09-07"]
[null,"dichloro-2-butene;1,4-","764-41-0"]
[null,"dichloro-2-butene;trans-1,4-","110-57-6"]
[null,"dichloroacetic acid","79-43-6",null,"very"]
[null,"dichlorobenzene;1,2-","95-50-1","X"]
[null,"dichlorobenzene;1,3-","541-73-1"]
[null,"dichlorobenzene;1,4-","106-46-7","X"]
[null,"dichlorobenzidine;3,3'-","91-94-1",null,"very"]
[null,"dichlorodifluoromethane","75-71-8","X"]
[null,"dichloroethane;1,1-","75-34-3","X"]
[null,"dichloroethane;1,2- (EDC)","107-06-2","X"]
[null,"dichloroethylene;1,1-","75-35-4","X"]
[null,"dichloroethylene;1,2-,cis","156-59-2","X","very"]
[null,"dichloroethylene;1,2-,trans","156-60-5","X"]
[null,"dichlorophenol;2,4-","120-83-2",null,"very"]
[null,"dichlorophenoxyacetic acid;2,4-","94-75-7"]
[null,"dichloropropane;1,2-","78-87-5","X","very"]
[null,"dichloropropane;1,3-","142-28-9"]
[null,"dichloropropanol;2,3-","616-23-9",null,"very"]
[null,"dichloropropene;1,3-","542-75-6","X"]
[null,"dichlorvos","62-73-7",null,"very"]
[null,"dicyclopentadiene","77-73-6",null,"extremely"]
[null,"dieldrin","60-57-1",null,"extremely","extremely"]
[null,"diethyl phthalate","84-66-2"]
[null,"diethylene glycol monobutyl ether","112-34-5",null,"extremely"]
[null,"diethylene glycol monoethyl ether","111-90-0",null,"extremely"]
[null,"diethylformamide","617-84-5",null,"very"]
[null,"diethylstilbesterol","56-53-1",null,"extremely"]
[null,"difenzoquat","43222-48-6"]
[null,"diflubenzuron","35367-38-5"]
[null,"difluoroethane;1,1-","75-37-6","X"]
[null,"diisopropyl ether","108-20-3"]
[null,"diisopropyl methylphosphonate","1445-75-6"]
[null,"dimethipin","55290-64-7"]
[null,"dimethoate","60-51-5",null,"very"]
[null,"dimethoxybenzidine;3,3'-","119-90-4",null,"very"]
[null,"dimethyl phthalate","131-11-3"]
[null,"dimethyl terephthalate","120-61-6"]
[null,"dimethylaniline hydrochloride;2,4-","21436-96-4"]
[null,"dimethylaniline;2,4-","95-68-1",null,"very"]
[null,"dimethylaniline;N,N-","121-69-7",null,"very"]
[null,"dimethylbenzidine;3,3'-","119-93-7",null,"extremely"]
[null,"dimethylformamide;N,N-","68-12-2"]
[null,"dimethylhydrazine;1,1-","57-14-7",null,"extremely"]
[null,"dimethylhydrazine;1,2-","540-73-8",null,"extremely"]
[null,"dimethylphenol;2,4-","105-67-9"]
[null,"dimethylphenol;2,6-","576-26-1",null,"very"]
[null,"dimethylphenol;3,4-","95-65-8",null,"very"]
[null,"dinitrobenzene;m-","99-65-0",null,"extremely"]
[null,"dinitrobenzene;o-","528-29-0",null,"extremely"]
[null,"dinitrobenzene;p-","100-25-4",null,"extremely"]
[null,"dinitro-o-cyclohexyl phenol;4,6-","131-89-5",null,"very"]
[null,"dinitrophenol;2,4-","51-28-5",null,"very"]
[null,"dinitrophenols","25550-58-7"]
[null,"dinitrotoluene mixture; 2,4-/2,6-","E1615210",null,"very"]
[null,"dinitrotoluene;2,4-","121-14-2",null,"very"]
[null,"dinitrotoluene;2,6-","606-20-2",null,"extremely"]
[null,"dinitrotoluene, 2-amino-4,6-","35572-78-2",null,"extremely"]
[null,"dinitrotoluene, 4-amino-2,6-","19406-51-0",null,"extremely"]
[null,"di-n-octyl phthalate","117-84-0"]
[null,"dinoseb","88-85-7",null,"very"]
[null,"dioxane;1,4-","123-91-1","X"]
[null,"diphenamid","957-51-7"]
[null,"diphenylamine","122-39-4"]
[null,"diphenylhydrazine;1,2-","122-66-7",null,"very"]
[null,"diquat","2764-72-9",null,"very"]
[null,"direct black 38","1937-37-7",null,"extremely"]
[null,"direct blue 6","2602-46-2",null,"extremely"]
[null,"direct brown 95","16071-86-6",null,"extremely"]
[null,"disulfoton","298-04-4",null,"extremely"]
[null,"dithiane;1,4-","505-29-3"]
[null,"diuron","330-54-1",null,"very"]
[null,"DNOC","534-52-1",null,"extremely"]
[null,"dodine","2439-10-03"]
[null,"endosulfan","115-29-7",null,null,"extremely"]
[null,"endosulfan sulfate","1031-07-8"]
[null,"endosulfan;alpha","959-98-8",null,null,"extremely"]
[null,"endosulfan;beta","33213-65-9",null,null,"extremely"]
[null,"endothall","145-73-3"]
[null,"endrin","72-20-8",null,"extremely","extremely"]
[null,"endrin aldehyde","7421-93-4"]
[null,"epichlorohydrin","106-89-8",null,"very"]
[null,"epoxybutane","106-88-7"]
[null,"ethephon","16672-87-0"]
[null,"ethion","563-12-2",null,"very"]
[null,"ethoxyethanol acetate;2-","111-15-9"]
[null,"ethoxyethanol;2-","110-80-5"]
[null,"ethyl acetate","141-78-6","X"]
[null,"ethyl acrylate","140-88-5","X"]
[null,"ethyl chloride","75-00-3","X"]
[null,"ethyl dipropylthiocarbamate;S-","759-94-4"]
[null,"ethyl ether","60-29-7"]
[null,"ethyl methacrylate","97-63-2","X"]
[null,"ethyl p-nitrophenyl phenylphosphorothioate","2104-64-5",null,"extremely"]
[null,"ethyl tertiary butyl ether (ETBE)","637-92-3","X"]
[null,"ethylbenzene","100-41-4","X"]
[null,"ethylene cyanohydrin","109-78-4"]
[null,"ethylene diamine","107-15-3"]
[null,"ethylene dibromide (EDB)","106-93-4","X","very"]
[null,"ethylene glycol","107-21-1"]
[null,"ethylene glycol monobutyl ether (EGBE)","111-76-2"]
[null,"ethylene oxide","75-21-8","X","extremely"]
[null,"ethylene thiourea","96-45-7",null,"extremely"]
[null,"ethylphthalyl ethyl glycolate","84-72-0"]
[null,"express","101200-48-0"]
[null,"fenamiphos","22224-92-6",null,"extremely"]
[null,"fluometuron","2164-17-2"]
[null,"fluoranthene","206-44-0"]
[null,"fluorene","86-73-7"]
[null,"fluoride","16984-48-8"]
[null,"fluridone","59756-60-4"]
[null,"flurprimidol","56425-91-3"]
[null,"flutolanil","66332-96-5"]
[null,"fluvalinate","69409-94-5"]
[null,"folpet","133-07-3"]
[null,"fomesafen","72178-02-0"]
[null,"fonofos","944-22-9",null,"very"]
[null,"formaldehyde","50-00-0"]
[null,"formic acid","64-18-6",null,"extremely"]
[null,"fosetyl-al","39148-24-8"]
[null,"furan","110-00-9",null,"very"]
[null,"furazolidone","67-45-8",null,"very"]
[null,"furfural","98-01-1",null,"very"]
[null,"furium","531-82-8",null,"very"]
[null,"furmecyclox","60568-05-0"]
[null,"glufosinate-ammonium","77182-82-2"]
[null,"glycidaldehyde","765-34-4",null,"extremely"]
[null,"glyphosate","1071-83-6"]
[null,"guthion","86-50-0",null,"very","extremely"]
[null,"haloxyfop-methyl","69806-40-2",null,"extremely"]
[null,"harmony","79277-27-3"]
[null,"heptachlor","76-44-8","X","extremely","extremely"]
[null,"heptachlor epoxide","1024-57-3",null,"extremely","extremely"]
[null,"heptane;n-","142-82-5","X","extremely"]
[null,"hexabromobenzene","87-82-1",null,"very"]
[null,"hexabromodiphenyl ether; 2,2',4,4',5,5'- (PBDE-153)","68631-49-2",null,"extremely"]
[null,"hexachlorobenzene","118-74-1","X","extremely"]
[null,"hexachlorobutadiene","87-68-3","X","very"]
[null,"hexachlorocyclohexane;alpha","319-84-6",null,"extremely"]
[null,"hexachlorocyclohexane;beta-","319-85-7",null,"very"]
[null,"hexachlorocyclohexane;technical","608-73-1",null,"very"]
[null,"hexachlorocyclopentadiene","77-47-4","X","extremely"]
[null,"hexachlorodibenzo-p-dioxin, mixture","34465-46-8",null,"extremely"]
[null,"hexachloroethane","67-72-1","X","very"]
[null,"hexachlorophene","70-30-4",null,"extremely"]
[null,"hexafluoropropylene oxide dimer acid (HFPO-DA; GenX)","13252-13-6",null,"extremely"]
[null,"hexamethylene diisocyanate;1,6-","822-06-0",null,"extremely"]
[null,"hexane;n-","110-54-3","X"]
[null,"hexanone;2-","591-78-6","X"]
[null,"hexazinone","51235-04-2"]
[null,"hydrazine","302-01-2",null,"extremely"]
[null,"hydrazine sulfate","10034-93-2",null,"very"]
[null,"hydrogen chloride","7647-01-0"]
[null,"hydrogen cyanide","74-90-8",null,"very"]
[null,"hydrogen sulfide","7783-06-04","X","very"]
[null,"hydroquinone","123-31-9"]
[null,"imazalil","35554-44-0"]
[null,"imazaquin","81335-37-7"]
[null,"indeno[1,2,3-cd]pyrene","193-39-5",null,"use cPAH TEQ - see benzo(a)pyrene"]
[null,"iprodione","36734-19-7"]
[null,"iron","7439-89-6"]
[null,"isobutyl alcohol","78-83-1"]
[null,"isophorone","78-59-1"]
[null,"isopropalin","33820-53-0"]
[null,"isopropanol","67-63-0"]
[null,"isopropyl methyl phosphonic acid","1832-54-8"]
[null,"isoxaben","82558-50-7"]
[null,"lactofen","77501-63-4"]
[null,"lead","7439-92-1",null,"extremely"]
[null,"lindane","58-89-9",null,"extremely","extremely"]
[null,"linuron","330-55-2"]
[null,"lithium","7439-93-2",null,"very"]
[null,"lithium perchlorate","7791-03-09",null,"very"]
[null,"londax","83055-99-6"]
[null,"malathion","121-75-5",null,null,"extremely"]
[null,"maleic anhydride","108-31-6",null,"very"]
[null,"maleic hydrazide","123-33-1"]
[null,"malononitrile","109-77-3",null,"extremely"]
[null,"mancozeb","8018-01-07"]
[null,"maneb","12427-38-2"]
[null,"manganese (diet or non-diet source)","7439-96-5",null,"extremely"]
[null,"mephosfolan","950-10-7",null,"extremely"]
[null,"mepiquat chloride","24307-26-4"]
[null,"mercuric chloride","7487-94-7",null,"extremely"]
[null,"mercury","7439-97-6","X","extremely","extremely"]
[null,"merphos","150-50-5",null,"extremely"]
[null,"metalaxyl","57837-19-1"]
[null,"methacrylonitrile","126-98-7","X","extremely"]
[null,"methamidosphos","10265-92-6",null,"extremely"]
[null,"methanol","67-56-1","X"]
[null,"methidathion","950-37-8",null,"very"]
[null,"methomyl","16752-77-5"]
[null,"methoxy-5-nitroaniline;2-","99-59-2"]
[null,"methoxychlor","72-43-5",null,null,"extremely"]
[null,"methoxyethanol acetate;2-","110-49-6",null,"very"]
[null,"methoxyethanol;2-","109-86-4"]
[null,"methyl acetate","79-20-9"]
[null,"methyl acrylate","96-33-3"]
[null,"methyl ethyl ketone","78-93-3","X"]
[null,"methyl isobutyl ketone","108-10-1","X"]
[null,"methyl mercury","22967-92-6",null,"extremely","extremely"]
[null,"methyl methacrylate","80-62-6","X"]
[null,"methyl naphthalene;1-","90-12-0"]
[null,"methyl naphthalene;2-","91-57-6",null,"very"]
[null,"methyl parathion","298-00-0",null,"extremely"]
[null,"methyl styrene","25013-15-4"]
[null,"methyl styrene, alpha","98-83-9"]
[null,"methyl tert-butyl ether (MTBE)","1634-04-4","X"]
[null,"methyl-4-chlorophenoxy-acetic acid;2-","94-74-6",null,"very"]
[null,"methyl-5-nitroaniline;2-","99-55-8"]
[null,"methylaniline hydrochloride;2-","636-21-5"]
[null,"methylaniline;2-","95-53-4"]
[null,"methylene bis(2-chloroaniline);4,4'-","101-14-4",null,"very"]
[null,"methylene bis(n,n'-dimethyl)aniline;4,4'-","101-61-1"]
[null,"methylene bromide","74-95-3","X","very"]
[null,"methylene chloride","75-09-2","X"]
[null,"methylene diphenyl diisocyanate (MDI)","101-68-8",null,"very"]
[null,"methylene diphenyl diisocyanate (polymeric) (PMDI)","9016-87-9",null,"very"]
[null,"methylenebisbenzenamine;4,4-","101-77-9",null,"very"]
[null,"methylhydrazine","60-34-4",null,"extremely"]
[null,"metolachlor","51218-45-2"]
[null,"metribuzin","21087-64-9"]
[null,"mirex","2385-85-5","X","extremely","extremely"]
[null,"molinate","2212-67-1",null,"very"]
[null,"molybdenum","7439-98-7",null,"very"]
[null,"monochloramine","10599-90-3"]
[null,"naled","300-76-5",null,"very"]
[null,"naphthalene","91-20-3","X","very"]
[null,"napropamide","15299-99-7"]
[null,"n-butylbenzene","104-51-8"]
[null,"nickel refinery dust","E715532",null,"extremely"]
[null,"nickel soluble salts","7440-02-0",null,"extremely"]
[null,"nickel subsulfide","12035-72-2",null,"extremely"]
[null,"nitrate (measured as nitrogen)","14797-55-8"]
[null,"nitrite (measured as nitrogen)","14797-65-0"]
[null,"nitroaniline, 2-","88-74-4",null,"extremely"]
[null,"nitroaniline, 4-","100-01-6",null,"very"]
[null,"nitrobenzene","98-95-3",null,"very"]
[null,"nitrofurantoin","67-20-9"]
[null,"nitrofurazone","59-87-0"]
[null,"nitroglycerin","55-63-0",null,"extremely"]
[null,"nitroguanidine","556-88-7"]
[null,"nitropropane;2-","79-46-9","X","very"]
[null,"nitrosodiethanolamine;N-","1116-54-7",null,"very"]
[null,"nitrosodiethylamine;N-","55-18-5",null,"extremely"]
[null,"nitrosodimethylamine;N-","62-75-9",null,"extremely"]
[null,"nitroso-di-n-butylamine;N-","924-16-3",null,"extremely"]
[null,"nitroso-di-n-propylamine;N-","621-64-7",null,"extremely"]
[null,"nitrosodiphenylamine;N-","86-30-6"]
[null,"nitroso-n-ethylurea;n-","759-73-9",null,"extremely"]
[null,"nitroso-N-methylethylamine;N-","10595-95-6",null,"extremely"]
[null,"nitroso-n-methylurea,n-","684-93-5",null,"extremely"]
[null,"nitrosopyrrolidine;N-","930-55-2",null,"extremely"]
[null,"nitrotoluene, m-","99-08-1",null,"extremely"]
[null,"nitrotoluene, o-","88-72-2",null,"very"]
[null,"nitrotoluene, p-","99-99-0",null,"very"]
[null,"nonylphenol","84852-15-3"]
[null,"norflurazon","27314-13-2",null,"very"]
[null,"nustar","85509-19-9",null,"very"]
[null,"octabromodiphenyl ether (OctaBDE)","32536-52-0"]
[null,"octahydro-1,3,5,7-tetranitro-1,3,5,7-tetrazocine","2691-41-0"]
[null,"octamethylpyrophosphoramide","152-16-9",null,"very"]
[null,"oryzalin","19044-88-3"]
[null,"oxadiazon","19666-30-9"]
[null,"oxamyl","23135-22-0"]
[null,"oxyfluorfen","42874-03-3"]
[null,"paclobutrazol","76738-62-0"]
[null,"paraquat dichloride","1910-42-5",null,"very"]
[null,"parathion","56-38-2",null,null,"extremely"]
[null,"pebulate","1114-71-2"]
[null,"pendimethalin","40487-42-1"]
[null,"pentabromo-6-chloro-cyclohexane;1,2,3,4,5-","87-84-3"]
[null,"pentabromodiphenyl ether; 2,2',4,4',5- (PBDE-99)","60348-60-9",null,"extremely"]
[null,"pentabromodiphenyl ethers (PentaBDE)","32534-81-9",null,"very"]
[null,"pentachlorobenzene","608-93-5",null,"very"]
[null,"pentachloroethane","76-01-7"]
[null,"pentachloronitrobenzene","82-68-8",null,"very"]
[null,"pentachlorophenol","87-86-5"]
[null,"pentaerythritol tetranitrate (PETN)","78-11-5"]
[null,"pentane;n-","109-66-0"]
[null,"perchlorate and perchlorate salts","14797-73-0",null,"very"]
[null,"perfluorobutanesulfonic acid (PFBS)","375-73-5",null,"extremely"]
[null,"perfluorobutanoic acid (PFBA)","375-22-4",null,"very"]
[null,"perfluorohexanesulfonic acid (PFHxS)","355-46-4",null,"extremely"]
[null,"perfluorononanoic acid (PFNA)","375-95-1",null,"extremely"]
[null,"perfluorooctanesulfonic acid (PFOS)","1763-23-1",null,"extremely"]
[null,"perfluorooctanoic acid (PFOA)","335-67-1",null,"extremely"]
[null,"permethrin","52645-53-1"]
[null,"phenmedipham","13684-63-4"]
[null,"phenol","108-95-2"]
[null,"phenylenediamine, p-","106-50-3",null,"very"]
[null,"phenylenediamine;m-","108-45-2"]
[null,"phenylenediamine;o-","95-54-5",null,"very"]
[null,"phenylmercuric acetate","62-38-4",null,"extremely"]
[null,"phenylphenol;2-","90-43-7"]
[null,"phorate","298-02-2",null,"extremely"]
[null,"phosgene","75-44-5","X","extremely"]
[null,"phosmet","732-11-6"]
[null,"phosphine","7803-51-2",null,"extremely"]
[null,"phosphoric acid","7664-38-2"]
[null,"phosphorus","7723-14-0",null,"extremely"]
[null,"phthalic acid;p-","100-21-0"]
[null,"phthalic anhydride","85-44-9"]
[null,"picloram","1918-02-01"]
[null,"pirimiphos-methyl","29232-93-7",null,"very"]
[null,"polybrominated biphenyls","36355-01-8",null,"extremely"]
[null,"polychlorinated biphenyls (PCBs)","1336-36-3",null,"extremely","extremely"]
[null,"potassium cyanide","151-50-8",null,"very"]
[null,"potassium perchlorate","7778-74-7",null,"very"]
[null,"potassium silver cyanide","506-61-6"]
[null,"prochloraz","67747-09-5"]
[null,"profluralin","26399-36-0"]
[null,"prometon","1610-18-0"]
[null,"prometryn","7287-19-6"]
[null,"pronamide","23950-58-5"]
[null,"propachlor","1918-16-7"]
[null,"propanil","709-98-8"]
[null,"propargite","2312-35-8"]
[null,"propargyl alcohol","107-19-7",null,"very"]
[null,"propazine","139-40-2"]
[null,"propham","122-42-9"]
[null,"propiconazole","60207-90-1"]
[null,"propionaldehyde","123-38-6","X"]
[null,"propionic acid;(2-methyl-4-chlorophenoxy)2-","93-65-2",null,"very"]
[null,"propylbenzene;n-","103-65-1","X"]
[null,"propylene glycol","57-55-6"]
[null,"propylene glycol dinitrate;1,2-","6423-43-4",null,"extremely"]
[null,"propylene glycol monoethyl ether","52125-53-8"]
[null,"propylene glycol monomethyl ether (PGME)","107-98-2"]
[null,"propylene oxide","75-56-9"]
[null,"pursuit","81335-77-5"]
[null,"pydrin","51630-58-1"]
[null,"pyrene","129-00-0"]
[null,"pyridine","110-86-1",null,"very"]
[null,"quinalphos","13593-03-8",null,"very"]
[null,"quinoline","91-22-5",null,"very"]
[null,"radium 226","13982-63-3",null,"extremely","extremely"]
[null,"radium 228","15262-20-1",null,"extremely","extremely"]
[null,"RDX","121-82-4",null,"very"]
[null,"refractory ceramic fibers","E715557",null,"extremely"]
[null,"resmethrin","10453-86-8"]
[null,"ronnel","299-84-3"]
[null,"rotenone","83-79-4",null,"very"]
[null,"s,s,s-tributylphosphorotrithioate","78-48-8",null,"extremely"]
[null,"savey","78587-05-0"]
[null,"sec-butylbenzene","135-98-8"]
[null,"selenious acid","7783-00-8"]
[null,"selenium and compounds","7782-49-2"]
[null,"sethoxydim","74051-80-2"]
[null,"silver","7440-22-4",null,null,"extremely"]
[null,"silver cyanide","506-64-9"]
[null,"simazine","122-34-9"]
[null,"sodium azide","26628-22-8",null,"very"]
[null,"sodium cyanide","143-33-9",null,"very"]
[null,"sodium diethyldithiocarbamate","148-18-5"]
[null,"sodium fluoroacetate","62-74-8",null,"extremely"]
[null,"sodium metavanadate","13718-26-8",null,"very"]
[null,"sodium perchlorate","7601-89-0",null,"very"]
[null,"strontium","7440-24-6"]
[null,"strychnine","57-24-9",null,"extremely"]
[null,"styrene","100-42-5","X"]
[null,"systhane","88671-89-0"]
[null,"TCDD;2,3,7,8- (use for dioxin/furan TEQ)","1746-01-6",null,"extremely"]
[null,"tebuthiuron","34014-18-1"]
[null,"temephos","3383-96-8"]
[null,"terbacil","5902-51-2"]
[null,"terbufos","13071-79-9",null,"extremely"]
[null,"terbutryn","886-50-0",null,"very"]
[null,"tert-butylbenzene","98-06-6"]
[null,"tetrabromodiphenyl ether 2,2',4,4' (PBDE-47)","5436-43-1",null,"extremely"]
[null,"tetrachlorobenzene;1,2,4,5-","95-94-3",null,"extremely"]
[null,"tetrachloroethane;1,1,1,2-","630-20-6","X"]
[null,"tetrachloroethane;1,1,2,2-","79-34-5","X"]
[null,"tetrachloroethylene (PCE)","127-18-4","X"]
[null,"tetrachlorophenol;2,3,4,6-","58-90-2"]
[null,"tetrachlorotoluene;p,a,a,a,-","5216-25-1",null,"extremely"]
[null,"tetrachlorvinphos","961-11-5"]
[null,"tetraethyl dithiopyrophosphate","3689-24-5",null,"very"]
[null,"tetraethyl lead","78-00-2",null,"extremely"]
[null,"tetrafluoroethane;1,1,1,2-","811-97-2"]
[null,"tetrahydrofuran","109-99-9","X"]
[null,"thallic oxide","1314-32-5",null,"extremely"]
[null,"thallium acetate","563-68-8",null,"extremely"]
[null,"thallium carbonate","6533-73-9",null,"extremely"]
[null,"thallium chloride","7791-12-0",null,"extremely"]
[null,"thallium nitrate","10102-45-1",null,"extremely"]
[null,"thallium selenite","12039-52-0",null,"extremely"]
[null,"thallium(I) sulfate","7446-18-6",null,"extremely"]
[null,"thallium, soluble salts","7440-28-0",null,"extremely"]
[null,"thiobencarb","28249-77-6"]
[null,"thiocyanomethylthiobenzothiazole;2-","21564-17-0"]
[null,"thiofanox","39196-18-4",null,"extremely"]
[null,"thiophanate-methyl","23564-05-8"]
[null,"thiram","137-26-8"]
[null,"tin","7440-31-5"]
[null,"TNT","118-96-7"]
[null,"toluene","108-88-3","X"]
[null,"toluene diisocyanate mixture;2,4-/2,6-","26471-62-5",null,"extremely"]
[null,"toluene-2,4-diisocyanate","584-84-9",null,"extremely"]
[null,"toluene-2,6-diisocyanate","91-08-7",null,"extremely"]
[null,"toluenediamine;2,5-","95-70-5"]
[null,"toluidine;p-","106-49-0"]
[null,"toxaphene","8001-35-2",null,"extremely","extremely"]
[null,"TP;2,4,5-","93-72-1"]
[null,"Total Petroleum Hydrocarbons (TPH), gas,","none","X (some)"]
[null,"diesel, and/or oil range"]
[null,"tralomethrin","66841-25-6"]
[null,"triallate","2303-17-5"]
[null,"triasulfuron","82097-50-5"]
[null,"tribromobenzene;1,2,4-","615-54-3"]
[null,"tributyltin","688-73-3",null,"very","extremely"]
[null,"tributyltin oxide","56-35-9",null,"extremely"]
[null,"trichloramine","10025-85-1"]
[null,"trichloro-1,2,2-trifluoroethane;1,1,2-","76-13-1","X"]
[null,"trichloroacetic acid","76-03-9"]
[null,"trichloroaniline hydrochloride;2,4,6-","33663-50-2"]
[null,"trichloroaniline;2,4,6-","634-93-5",null,"extremely"]
[null,"trichlorobenzene;1,2,3-","87-61-6",null,"very"]
[null,"trichlorobenzene;1,2,4-","120-82-1","X","very"]
[null,"trichloroethane;1,1,1-","71-55-6","X"]
[null,"trichloroethane;1,1,2-","79-00-5","X","very"]
[null,"trichloroethylene (TCE)","79-01-6","X","very"]
[null,"trichlorofluoromethane","75-69-4","X"]
[null,"trichlorophenol;2,4,5-","95-95-4"]
[null,"trichlorophenol;2,4,6-","88-06-2",null,"very"]
[null,"trichlorophenoxyacetic acid;2,4,5-","93-76-5"]
[null,"trichloropropane;1,1,2-","598-77-6"]
[null,"trichloropropane;1,2,3-","96-18-4","X","extremely"]
[null,"trichloropropene;1,2,3-","96-19-5",null,"extremely"]
[null,"tridiphane","58138-08-2",null,"very"]
[null,"triethylamine","121-44-8","X"]
[null,"trifluralin","1582-09-8"]
[null,"trihalomethanes, (total) (TTHMs)","none"]
[null,"trimethyl phosphate","512-56-1"]
[null,"trimethylbenzene;1,2,3-","526-73-8","X"]
[null,"trimethylbenzene;1,2,4-","95-63-6","X"]
[null,"trimethylbenzene;1,3,5-","108-67-8","X"]
[null,"trinitrobenzene;1,3,5-","99-35-4"]
[null,"trinitrophenylmethylnitramine","479-45-8",null,"very"]
[null,"uranium, soluble salts","7440-61-1",null,"extremely"]
[null,"vanadium","7440-62-2",null,"extremely"]
[null,"vanadium pentoxide","1314-62-1",null,"extremely"]
[null,"vernam","1929-77-7",null,"very"]
[null,"vinclozolin","50471-44-8",null,"very"]
[null,"vinyl acetate","108-05-4","X"]
[null,"vinyl chloride","75-01-4","X","extremely"]
[null,"warfarin","81-81-2",null,"extremely"]
[null,"white mineral oil","8012-95-1"]
[null,"xylene;m-","108-38-3"]
[null,"xylene;o-","95-47-6"]
[null,"xylene;p-","106-42-3"]
[null,"xylenes","1330-20-7","X"]
[null,"zinc","7440-66-6"]
[null,"zinc cyanide","557-21-1"]
[null,"zinc phosphide","1314-84-7",null,"extremely"]
[null,"zineb","12122-67-7"]